Workbook

Sheet TR148
A1: Indication of FFR results for Tender Round 148, accepted tenders will be officially notified via an issued acceptance letter.
A2: Tender Ref | D2: Company Name | E2: Tendered Unit (BMU/Unit ID) | F2: TO connection / DNO connection | G2: Generation Type | H2: Start Date | I2: End Date | J2: Tendered Period (dd.mm.yy - dd.mm.yy) | K2: Applicable FFR Capability Data Table | L2: Tendered Frames per Service Day | U2: Tendered Prices*** | X2: BMUs Only - Applicable Balancing Service (i.e. ABSVD Imbalance) YES/NO | Y2: Dynamic Providers Only | AC2: Dynamic Providers only | AJ2: Please indicate as per detail change provision if you are adding volume | AK2: Please state the accepted tender that you are stacking onto | AL2: Please state if this is an all or nothing bid. Clearly reference what lines are included in each all or nothing bid | AM2: Please indicate if this is a mutually exclusive tender | AN2: Non-Dynamic Providers | AP2: Post Code | AQ2: Comments
B3: Status | C3: Rejection Code | L3: Working Days (Mon-Fri) | O3: Saturdays | R3: Sundays/Bank Holidays | U3: Availability Fee (£/h) | V3: Nomination Fee (£/h) | W3: Window Initiation Fee (£/window) | Y3: Maximum Part Load Point (MW) | Z3: Minimum Part Load Point (MW) | AA3: Minimum MEL (MW) | AB3: Maximum SEL (MW) | AN3: Volume of Response Tendered
L4: L | M4: To | N4: Duration (h) | O4: From | P4: To | Q4: Duration (h) | R4: From | S4: To | T4: Duration (h) | AC4: Primary Response (max.) @ 0.2Hz (MW) | AD4: Primary Response (max.) @ 0.5Hz (MW) | AE4: Primary Response (max.) @ 0.8Hz (MW) | AF4: Secondary Response (max.) @ 0.2/0.2Hz (MW) | AG4: Secondary Response (max.) @ 0.5/0.5Hz (MW) | AH4: High Frequency Response (max.) @ 0.2Hz (MW) | AI4: High Frequency Response (max.) @ 0.5Hz (MW) | AN4: Automatic Response Energy Deliverable by 10s (MW) | AO4: Automatic Response Energy Deliverable by 30s (MW)
A5: 148 | D5: Example Company | E5: Ex-FFR-1 | F5: TO connection | G5: Wind | H5: =#REF! ->  | I5: =#REF! ->  | J5: =IFERROR(TEXT(H5,"DD.MM.YY")&" - "&TEXT(I5,"DD.MM.YY")&" ("&DATEDIF(H5,I5+1,"m")&" months)","Tender End Date is Before Start Date") -> Tender End Date is Before Start Date | K5: As per FFR framework agreement | L5: 2300 | M5: 700 | N5: =IF(L5>M5, (2400-L5+M5)/100, IF(AND(L5="",M5="",L5=M5), "", IF(L5=M5,24,(M5-L5)/100))) -> 8 | O5: 2300 | P5: 700 | Q5: =IF(O5>P5, (2400-O5+P5)/100, IF(AND(O5="",P5="",O5=P5), "", IF(O5=P5,24,(P5-O5)/100))) -> 8 | R5: 2300 | S5: 700 | T5: =IF(R5>S5, (2400-R5+S5)/100, IF(AND(R5="",S5="",R5=S5), "", IF(R5=S5,24,(S5-R5)/100))) -> 8 | U5: 100 | V5: 600 | W5: - | X5: - | Y5: - | Z5: - | AA5: - | AB5: - | AC5: - | AD5: - | AE5: - | AF5: - | AG5: - | AH5: - | AI5: - | AJ5: - | AK5: - | AN5: - | AO5: - | AP5: - | AQ5: -
A6: =A5 -> 148 | D6: Example Company | E6: =E5 -> Ex-FFR-1 | F6: DNO connection | G6: Gas | H6: =H5 ->  | I6: =I5 ->  | J6: =IFERROR(TEXT(H6,"DD.MM.YY")&" - "&TEXT(I6,"DD.MM.YY")&" ("&DATEDIF(H6,I6+1,"m")&" months)","Tender End Date is Before Start Date") -> Tender End Date is Before Start Date | K6: As per FFR framework agreement | L6: 700 | M6: 2300 | N6: =IF(L6>M6, (2400-L6+M6)/100, IF(AND(L6="",M6="",L6=M6), "", IF(L6=M6,24,(M6-L6)/100))) -> 16 | O6: 700 | P6: 2300 | Q6: =IF(O6>P6, (2400-O6+P6)/100, IF(AND(O6="",P6="",O6=P6), "", IF(O6=P6,24,(P6-O6)/100))) -> 16 | R6: 700 | S6: 2300 | T6: =IF(R6>S6, (2400-R6+S6)/100, IF(AND(R6="",S6="",R6=S6), "", IF(R6=S6,24,(S6-R6)/100))) -> 16 | U6: 600 | V6: 100 | W6: - | X6: - | Y6: - | Z6: - | AA6: - | AB6: - | AC6: - | AD6: - | AE6: - | AF6: - | AG6: - | AH6: - | AI6: - | AJ6: - | AK6: - | AN6: - | AO6: - | AP6: - | AQ6: -
A7: =A5+0.001 -> 148.001 | B7: Rejected | C7: 2 | D7: GRIDRESERVE LIMITED | E7: NSFE02 | F7: DNO connection | G7: Battery | H7: 2022-04-30 | I7: 2022-05-31 | J7: 30.04.22 - 31.05.22 (1 months) | K7: As per FFR framework agreement | L7: 2300 | M7: 1500 | N7: =IF(L7>M7, (2400-L7+M7)/100, IF(AND(L7="",M7="",L7=M7), "", IF(L7=M7,24,(M7-L7)/100))) -> 16 | Q7: =IF(O7>P7, (2400-O7+P7)/100, IF(AND(O7="",P7="",O7=P7), "", IF(O7=P7,24,(P7-O7)/100))) ->  | T7: =IF(R7>S7, (2400-R7+S7)/100, IF(AND(R7="",S7="",R7=S7), "", IF(R7=S7,24,(S7-R7)/100))) ->  | U7: 365.31 | X7: YES | AC7: 10.8 | AD7: 27 | AE7: 27 | AF7: 10.8 | AG7: 27 | AH7: 10.8 | AI7: 27 | AP7: EH48
A8: =A7+0.001 -> 148.002 | B8: Accepted | C8: NA | D8: GRIDRESERVE LIMITED | E8: NSFE02 | F8: DNO connection | G8: Battery | H8: 2022-05-01 | I8: 2022-05-31 | J8: 01.05.22 - 31.05.22 (1 months) | K8: As per FFR framework agreement | L8: 1500 | M8: 2300 | N8: 8 | U8: 1041.12 | X8: YES | AC8: 10.8 | AD8: 27 | AE8: 27 | AF8: 10.8 | AG8: 27 | AH8: 10.8 | AI8: 27 | AP8: EH48
A9: 148.003 | B9: Rejected | C9: 2 | D9: GRIDRESERVE LIMITED | E9: NSFE02 | F9: DNO connection | G9: Battery | H9: 2022-04-30 | I9: 2022-05-31 | J9: 30.04.22 - 31.05.22 (1 months) | K9: As per FFR framework agreement | O9: 2300 | P9: 1500 | Q9: 16 | R9: 2300 | S9: 1500 | T9: 16 | U9: 493.56 | X9: YES | AC9: 10.8 | AD9: 27 | AE9: 27 | AF9: 10.8 | AG9: 27 | AH9: 10.8 | AI9: 27 | AP9: EH48
A10: 148.004 | B10: Rejected | C10: 2 | D10: BLOXWICH ENERGY STORAGE LIMITED | E10: ARNKB-1 | F10: DNO connection | G10: Battery | H10: 2022-04-30 | I10: 2022-05-31 | J10: 30.04.22 - 31.05.22 (1 months) | K10: As per FFR framework agreement | L10: 2300 | M10: 1500 | N10: 16 | U10: 526.68 | X10: YES | AC10: =AD10*0.4 -> 15.2 | AD10: 38 | AE10: 38 | AF10: =AG10*0.4 -> 15.2 | AG10: 38 | AH10: =AI10*0.4 -> 15.2 | AI10: 38 | AP10: WS2
A11: 148.005 | B11: Accepted | C11: NA | D11: BLOXWICH ENERGY STORAGE LIMITED | E11: ARNKB-1 | F11: DNO connection | G11: Battery | H11: 2022-05-01 | I11: 2022-05-31 | J11: 01.05.22 - 31.05.22 (1 months) | K11: As per FFR framework agreement | L11: 1500 | M11: 2300 | N11: 8 | U11: 1421.96 | X11: YES | AC11: =AD11*0.4 -> 15.2 | AD11: 38 | AE11: 38 | AF11: =AG11*0.4 -> 15.2 | AG11: 38 | AH11: =AI11*0.4 -> 15.2 | AI11: 38 | AP11: WS2
A12: 148.006 | B12: Rejected | C12: 2 | D12: BLOXWICH ENERGY STORAGE LIMITED | E12: ARNKB-1 | F12: DNO connection | G12: Battery | H12: 2022-04-30 | I12: 2022-05-31 | J12: 30.04.22 - 31.05.22 (1 months) | K12: As per FFR framework agreement | O12: 2300 | P12: 1500 | Q12: 16 | R12: 2300 | S12: 1500 | T12: 16 | U12: 652.46 | X12: YES | AC12: 15.2 | AD12: 38 | AE12: 38 | AF12: 15.2 | AG12: 38 | AH12: 15.2 | AI12: 38 | AP12: WS2
A13: 148.007 | B13: Rejected | C13: 2 | D13: ATTUNE ENERGY | E13: ERNES-1 | F13: DNO connection | G13: Bio Fuel | H13: 2022-04-30 | I13: 2022-05-31 | J13: 30.04.22 - 31.05.22 (1 months) | K13: As per FFR framework agreement | L13: 2300 | M13: 300 | N13: 4 | O13: 2300 | P13: 700 | Q13: 8 | R13: 2300 | S13: 700 | T13: 8 | U13: 79.95 | AO13: 20 | AP13: PL5
A14: 148.008 | B14: Rejected | C14: 2 | D14: FLEXIBLE GENERATION | E14: CRMU-1 | F14: DNO connection | G14: Bio Fuel | H14: 2022-04-30 | I14: 2022-05-31 | J14: 30.04.22 - 31.05.22 (1 months) | K14: As per FFR framework agreement | L14: 2300 | M14: 300 | N14: 4 | O14: 2300 | P14: 700 | Q14: 8 | R14: 2300 | S14: 700 | T14: 8 | U14: 80.01 | AO14: 20 | AP14: NP11
A15: 148.009 | B15: Rejected | C15: 2 | D15: PRECISE ENERGY | E15: STOWA-1 | F15: DNO connection | G15: Bio Fuel | H15: 2022-04-30 | I15: 2022-05-31 | J15: 30.04.22 - 31.05.22 (1 months) | K15: As per FFR framework agreement | L15: 2300 | M15: 300 | N15: 4 | O15: 2300 | P15: 700 | Q15: 8 | R15: 2300 | S15: 700 | T15: 8 | U15: 79.99 | AO15: 20 | AP15: IP14
A16: 148.01 | B16: Rejected | C16: 2 | D16: VALENCE POWER | E16: STOWB-1 | F16: DNO connection | G16: Bio Fuel | H16: 2022-04-30 | I16: 2022-05-31 | J16: 30.04.22 - 31.05.22 (1 months) | K16: As per FFR framework agreement | L16: 2300 | M16: 300 | N16: 4 | O16: 2300 | P16: 700 | Q16: 8 | R16: 2300 | S16: 700 | T16: 8 | U16: 79.98 | AO16: 20 | AP16: IP14
A17: 148.011 | B17: Rejected | C17: 2 | D17: BALANCE POWER | E17: IPSWA-1 | F17: DNO connection | G17: Bio Fuel | H17: 2022-04-30 | I17: 2022-05-31 | J17: 30.04.22 - 31.05.22 (1 months) | K17: As per FFR framework agreement | L17: 2300 | M17: 300 | N17: 4 | O17: 2300 | P17: 700 | Q17: 8 | R17: 2300 | S17: 700 | T17: 8 | U17: 79.97 | AO17: 20 | AP17: IP3
A18: 148.012 | B18: Rejected | C18: 2 | D18: EQUIVALENCE ENERGY | E18: IPSWB-1 | F18: DNO connection | G18: Bio Fuel | H18: 2022-04-30 | I18: 2022-05-31 | J18: 30.04.22 - 31.05.22 (1 months) | K18: As per FFR framework agreement | L18: 2300 | M18: 700 | N18: 8 | O18: 2300 | P18: 700 | Q18: 8 | R18: 2300 | S18: 700 | T18: 8 | U18: 80 | AO18: 20 | AP18: IP3
A19: 148.013 | B19: Accepted | C19: NA | D19: EQUIVALENCE ENERGY | E19: IPSWB-1 | F19: DNO connection | G19: Bio Fuel | H19: 2022-05-01 | I19: 2022-05-31 | J19: 01.05.22 - 31.05.22 (1 months) | K19: As per FFR framework agreement | L19: 700 | M19: 1500 | N19: 8 | O19: 700 | P19: 1500 | Q19: 8 | R19: 700 | S19: 1500 | T19: 8 | U19: 80 | AO19: 20 | AP19: IP3
A20: 148.014 | B20: Accepted | C20: NA | D20: EQUIVALENCE ENERGY | E20: IPSWB-1 | F20: DNO connection | G20: Bio Fuel | H20: 2022-05-01 | I20: 2022-05-31 | J20: 01.05.22 - 31.05.22 (1 months) | K20: As per FFR framework agreement | L20: 1900 | M20: 2300 | N20: 4 | O20: 1900 | P20: 2300 | Q20: 4 | R20: 1900 | S20: 2300 | T20: 4 | U20: 80 | AO20: 20 | AP20: IP3
A21: =A20+0.004 -> 148.018 | B21: Accepted | C21: NA | D21: REstore Flexpond UK Ltd | E21: REST-1 | F21: DNO connection | G21: Multiple Fuel Type | H21: 2022-04-30 | I21: 2022-05-31 | J21: 30.04.22 - 31.05.22 (1 months) | K21: As per FFR framework agreement | L21: 2300 | M21: 2300 | N21: 24 | O21: 2300 | P21: 2300 | Q21: 24 | R21: 2300 | S21: 2300 | T21: 24 | U21: 53.75 | X21: No | AC21: 2 | AD21: 5 | AE21: 5 | AF21: 2 | AG21: 5 | AH21: 2 | AI21: 5 | AL21: A | AM21: Mutually Exclusive to B + C | AP21: Various
A22: 148.019 | B22: Rejected | C22: 4 | D22: REstore Flexpond UK Ltd | E22: REST-1 | F22: DNO connection | G22: Multiple Fuel Type | H22: 2022-04-30 | I22: 2022-05-31 | J22: 30.04.22 - 31.05.22 (1 months) | K22: As per FFR framework agreement | L22: 2300 | M22: 1500 | N22: 16 | O22: 2300 | P22: 1500 | Q22: 16 | R22: 2300 | S22: 1500 | T22: 16 | U22: 44.5 | X22: No | AC22: 2 | AD22: 5 | AE22: 5 | AF22: 2 | AG22: 5 | AH22: 2 | AI22: 5 | AL22: B | AM22: Mutually Exclusive to A | AP22: Various
A23: 148.02 | B23: Rejected | C23: 4 | D23: REstore Flexpond UK Ltd | E23: REST-1 | F23: DNO connection | G23: Multiple Fuel Type | H23: 2022-05-01 | I23: 2022-05-31 | J23: 01.05.22 - 31.05.22 (1 months) | K23: As per FFR framework agreement | L23: 1500 | M23: 2300 | N23: 8 | O23: 1500 | P23: 2300 | Q23: 8 | R23: 1500 | S23: 2300 | T23: 8 | U23: 91.75 | X23: No | AC23: 2 | AD23: 5 | AE23: 5 | AF23: 2 | AG23: 5 | AH23: 2 | AI23: 5 | AL23: C | AM23: Mutually Exclusive to A | AP23: Various
A24: 148.021 | B24: Accepted | C24: NA | D24: Centrica Business Solutions Uk Optimisation UK Ltd | E24: V__LCEND001 | F24: DNO connection | G24: DSF: Storage (for export) | H24: 2022-04-30 | I24: 2022-05-31 | J24: 30.04.22 - 31.05.22 (1 months) | K24: As per FFR framework agreement | L24: 2300 | M24: 2300 | N24: 24 | O24: 2300 | P24: 2300 | Q24: 24 | R24: 2300 | S24: 2300 | T24: 24 | U24: 11.05 | X24: Yes | AC24: 0.4 | AD24: 1 | AE24: 1 | AF24: 0.4 | AG24: 1 | AH24: 0.4 | AI24: 1 | AL24: A | AM24: Mutually Exclusive to B + C | AP24: TR27
A25: 148.022 | B25: Rejected | C25: 4 | D25: Centrica Business Solutions Uk Optimisation UK Ltd | E25: V__LCEND001 | F25: DNO connection | G25: DSF: Storage (for export) | H25: 2022-04-30 | I25: 2022-05-31 | J25: 30.04.22 - 31.05.22 (1 months) | K25: As per FFR framework agreement | L25: 2300 | M25: 1500 | N25: 16 | O25: 2300 | P25: 1500 | Q25: 16 | R25: 2300 | S25: 1500 | T25: 16 | U25: 8.9 | X25: Yes | AC25: 0.4 | AD25: 1 | AE25: 1 | AF25: 0.4 | AG25: 1 | AH25: 0.4 | AI25: 1 | AL25: B | AM25: Mutually Exclusive to A | AP25: TR27
A26: 148.023 | B26: Rejected | C26: 4 | D26: Centrica Business Solutions Uk Optimisation UK Ltd | E26: V__LCEND001 | F26: DNO connection | G26: DSF: Storage (for export) | H26: 2022-05-01 | I26: 2022-05-31 | J26: 01.05.22 - 31.05.22 (1 months) | K26: As per FFR framework agreement | L26: 1500 | M26: 2300 | N26: 8 | O26: 1500 | P26: 2300 | Q26: 8 | R26: 1500 | S26: 2300 | T26: 8 | U26: 18.35 | X26: Yes | AC26: 0.4 | AD26: 1 | AE26: 1 | AF26: 0.4 | AG26: 1 | AH26: 0.4 | AI26: 1 | AL26: C | AM26: Mutually Exclusive to A | AP26: TR27
A27: =A26+0.004 -> 148.027 | B27: Accepted | C27: NA | D27: Centrica Business Solutions Uk Optimisation UK Ltd | E27: CBSO-2 | F27: DNO connection | G27: DSF: Distributed generation (for export) | H27: 2022-04-30 | I27: 2022-05-31 | J27: =IFERROR(TEXT(H27,"DD.MM.YY")&" - "&TEXT(I27,"DD.MM.YY")&" ("&DATEDIF(H27,I27+1,"m")&" months)","Tender End Date is Before Start Date") -> 30.04.22 - 31.05.22 (1 months) | K27: As per FFR framework agreement | L27: 2300 | M27: 700 | N27: =IF(L27>M27, (2400-L27+M27)/100, IF(AND(L27="",M27="",L27=M27), "", IF(L27=M27,24,(M27-L27)/100))) -> 8 | O27: 2300 | P27: 700 | Q27: =IF(O27>P27, (2400-O27+P27)/100, IF(AND(O27="",P27="",O27=P27), "", IF(O27=P27,24,(P27-O27)/100))) -> 8 | R27: 2300 | S27: 700 | T27: =IF(R27>S27, (2400-R27+S27)/100, IF(AND(R27="",S27="",R27=S27), "", IF(R27=S27,24,(S27-R27)/100))) -> 8 | U27: 26.6 | X27: No | AL27: A | AO27: 7 | AP27: BS2 8
A28: 148.028 | B28: Accepted | C28: NA | D28: Centrica Business Solutions Uk Optimisation UK Ltd | E28: CBSO-2 | F28: DNO connection | G28: DSF: Distributed generation (for export) | H28: 2022-05-01 | I28: 2022-05-31 | J28: 01.05.22 - 31.05.22 (1 months) | K28: As per FFR framework agreement | L28: 700 | M28: 1500 | N28: =IF(L28>M28, (2400-L28+M28)/100, IF(AND(L28="",M28="",L28=M28), "", IF(L28=M28,24,(M28-L28)/100))) -> 8 | O28: 700 | P28: 1500 | Q28: =IF(O28>P28, (2400-O28+P28)/100, IF(AND(O28="",P28="",O28=P28), "", IF(O28=P28,24,(P28-O28)/100))) -> 8 | R28: 700 | S28: 1500 | T28: =IF(R28>S28, (2400-R28+S28)/100, IF(AND(R28="",S28="",R28=S28), "", IF(R28=S28,24,(S28-R28)/100))) -> 8 | U28: 26.6 | X28: No | AL28: B | AO28: 7 | AP28: BS2 8
A29: 148.029 | B29: Accepted | C29: NA | D29: Centrica Business Solutions Uk Optimisation UK Ltd | E29: CBSO-2 | F29: DNO connection | G29: DSF: Distributed generation (for export) | H29: 2022-05-01 | I29: 2022-05-31 | J29: 01.05.22 - 31.05.22 (1 months) | K29: As per FFR framework agreement | L29: 1500 | M29: 2300 | N29: =IF(L29>M29, (2400-L29+M29)/100, IF(AND(L29="",M29="",L29=M29), "", IF(L29=M29,24,(M29-L29)/100))) -> 8 | O29: 1500 | P29: 2300 | Q29: =IF(O29>P29, (2400-O29+P29)/100, IF(AND(O29="",P29="",O29=P29), "", IF(O29=P29,24,(P29-O29)/100))) -> 8 | R29: 1500 | S29: 2300 | T29: =IF(R29>S29, (2400-R29+S29)/100, IF(AND(R29="",S29="",R29=S29), "", IF(R29=S29,24,(S29-R29)/100))) -> 8 | U29: 26.6 | X29: No | AL29: C | AO29: 7 | AP29: BS2 8
A30: 148.03 | B30: Accepted | C30: NA | D30: City Energy Management Services Ltd. | E30: CMFH-1 | F30: DNO connection | G30: DSF: Load response | H30: 2022-04-30 | I30: 2022-05-31 | J30: 30.04.22 - 31.05.22 (1 months) | K30: As per FFR framework agreement | L30: 2300 | M30: 1100 | N30: =IF(L30>M30, (2400-L30+M30)/100, IF(AND(L30="",M30="",L30=M30), "", IF(L30=M30,24,(M30-L30)/100))) -> 12 | O30: 2300 | P30: 1100 | Q30: =IF(O30>P30, (2400-O30+P30)/100, IF(AND(O30="",P30="",O30=P30), "", IF(O30=P30,24,(P30-O30)/100))) -> 12 | R30: 2300 | S30: 1100 | T30: =IF(R30>S30, (2400-R30+S30)/100, IF(AND(R30="",S30="",R30=S30), "", IF(R30=S30,24,(S30-R30)/100))) -> 12 | U30: 3.95 | AO30: 1
A31: 148.031 | B31: Accepted | C31: NA | D31: City Energy Management Services Ltd. | E31: CMFH-1 | F31: DNO connection | G31: DSF: Load response | H31: 2022-05-01 | I31: 2022-05-31 | J31: 01.05.22 - 31.05.22 (1 months) | K31: As per FFR framework agreement | L31: 1100 | M31: 1500 | N31: 4 | O31: 1100 | P31: 1500 | Q31: 4 | R31: 1100 | S31: 1500 | T31: 4 | U31: 7.9 | AO31: 2
A32: 148.032 | B32: Accepted | C32: NA | D32: City Energy Management Services Ltd. | E32: CMFH-1 | F32: DNO connection | G32: DSF: Load response | H32: 2022-05-01 | I32: 2022-05-31 | J32: 01.05.22 - 31.05.22 (1 months) | K32: As per FFR framework agreement | L32: 1900 | M32: 2300 | N32: 4 | O32: 1900 | P32: 2300 | Q32: 4 | R32: 1900 | S32: 2300 | T32: 4 | U32: 7.9 | AO32: 2
A33: 148.033 | B33: Accepted | C33: NA | D33: EDF Energy Customers Limited | E33: EDFE-4 | F33: DNO connection | G33: DSF: Storage (for export) | H33: 2022-04-30 | I33: 2022-05-31 | J33: 30.04.22 - 31.05.22 (1 months) | K33: As per FFR framework agreement | L33: 2300 | M33: 2300 | N33: 24 | O33: 2300 | P33: 2300 | Q33: 24 | R33: 2300 | S33: 2300 | T33: 24 | U33: 77.64 | AC33: 2.4 | AD33: 6 | AE33: 6 | AF33: 2.4 | AG33: 6 | AH33: 2.4 | AI33: 6 | AP33: MK45
A34: 148.034 | B34: Accepted | C34: NA | D34: EDF Energy Customers Limited | E34: EDFE-8 | F34: DNO connection | G34: DSF: Storage (for export) | H34: 2022-04-30 | I34: 2022-05-31 | J34: 30.04.22 - 31.05.22 (1 months) | K34: As per FFR framework agreement | L34: 2300 | M34: 700 | N34: 8 | O34: 2300 | P34: 700 | Q34: 8 | R34: 2300 | S34: 700 | T34: 8 | U34: 195 | AC34: 8 | AD34: 20 | AE34: 20 | AF34: 8 | AG34: 20 | AH34: 8 | AI34: 20 | AP34: SY8 2
A35: 148.035 | B35: Rejected | C35: 2 | D35: EDF Energy Customers Limited | E35: EDFE-8 | F35: DNO connection | G35: DSF: Storage (for export) | H35: 2022-05-01 | I35: 2022-05-31 | J35: 01.05.22 - 31.05.22 (1 months) | K35: As per FFR framework agreement | L35: 700 | M35: 1500 | N35: 8 | O35: 700 | P35: 1500 | Q35: 8 | R35: 700 | S35: 1500 | T35: 8 | U35: 280 | AC35: 8 | AD35: 20 | AE35: 20 | AF35: 8 | AG35: 20 | AH35: 8 | AI35: 20 | AP35: SY8 2
A36: 148.036 | B36: Accepted | C36: NA | D36: EDF Energy Customers Limited | E36: EDFE-8 | F36: DNO connection | G36: DSF: Storage (for export) | H36: 2022-05-01 | I36: 2022-05-31 | J36: 01.05.22 - 31.05.22 (1 months) | K36: As per FFR framework agreement | L36: 1500 | M36: 2300 | N36: 8 | O36: 1500 | P36: 2300 | Q36: 8 | R36: 1500 | S36: 2300 | T36: 8 | U36: 599 | AC36: 8 | AD36: 20 | AE36: 20 | AF36: 8 | AG36: 20 | AH36: 8 | AI36: 20 | AP36: SY8 2
A37: =A36+0.003 -> 148.039 | B37: Rejected | C37: 2 | D37: EDF Energy Customers Limited | E37: KEMB-1 | F37: TO connection | G37: DSF: Storage (for export) | H37: 2022-05-01 | I37: 2022-05-31 | J37: 01.05.22 - 31.05.22 (1 months) | K37: As per FFR framework agreement | L37: 1500 | M37: 2300 | N37: 8 | O37: 1500 | P37: 2300 | Q37: 8 | R37: 1500 | S37: 2300 | T37: 8 | U37: 2205 | X37: YES | AC37: 19.6 | AD37: 49 | AE37: 49 | AF37: 19.6 | AG37: 49 | AH37: 19.6 | AI37: 49 | AP37: ME10
A38: =A37+0.003 -> 148.042 | B38: Rejected | C38: 2 | D38: EDF Energy Customers Limited | E38: AG-AEDF02 | F38: DNO connection | G38: DSF: Storage (for export) | H38: 2022-04-30 | I38: 2022-05-31 | J38: 30.04.22 - 31.05.22 (1 months) | K38: As per FFR framework agreement | L38: 2300 | M38: 700 | N38: 8 | O38: 2300 | P38: 700 | Q38: 8 | R38: 2300 | S38: 700 | T38: 8 | U38: 601.23 | X38: YES | AC38: 19.6 | AD38: 49 | AE38: 49 | AF38: 19.6 | AG38: 49 | AH38: 15.6 | AI38: 39 | AP38: IP13
A39: 148.043 | B39: Rejected | C39: 2 | D39: EDF Energy Customers Limited | E39: AG-AEDF02 | F39: DNO connection | G39: DSF: Storage (for export) | H39: 2022-05-01 | I39: 2022-05-31 | J39: 01.05.22 - 31.05.22 (1 months) | K39: As per FFR framework agreement | L39: 700 | M39: 1500 | N39: 8 | O39: 700 | P39: 1500 | Q39: 8 | R39: 700 | S39: 1500 | T39: 8 | U39: 831.53 | X39: YES | AC39: 19.6 | AD39: 49 | AE39: 49 | AF39: 19.6 | AG39: 49 | AH39: 15.6 | AI39: 39 | AP39: IP13
A40: 148.044 | B40: Rejected | C40: 2 | D40: EDF Energy Customers Limited | E40: AG-AEDF02 | F40: DNO connection | G40: DSF: Storage (for export) | H40: 2022-05-01 | I40: 2022-05-31 | J40: 01.05.22 - 31.05.22 (1 months) | K40: As per FFR framework agreement | L40: 1500 | M40: 2300 | N40: 8 | O40: 1500 | P40: 2300 | Q40: 8 | R40: 1500 | S40: 2300 | T40: 8 | U40: 2057.51 | X40: YES | AC40: 19.6 | AD40: 49 | AE40: 49 | AF40: 19.6 | AG40: 49 | AH40: 15.6 | AI40: 39 | AP40: IP13
A41: 148.045 | B41: Rejected | C41: 2 | D41: EDF Energy Customers Limited | E41: AG -GEDF01 | F41: DNO connection | G41: DSF: Storage (for export) | H41: 2022-04-30 | I41: 2022-05-31 | J41: 30.04.22 - 31.05.22 (1 months) | K41: As per FFR framework agreement | L41: 2300 | M41: 700 | N41: 8 | O41: 2300 | P41: 700 | Q41: 8 | R41: 2300 | S41: 700 | T41: 8 | U41: 229.8 | X41: YES | AC41: 8 | AD41: 20 | AE41: 20 | AF41: 8 | AG41: 20 | AH41: 8 | AI41: 20 | AP41: SK10
A42: 148.046 | B42: Rejected | C42: 2 | D42: EDF Energy Customers Limited | E42: AG -GEDF01 | F42: DNO connection | G42: DSF: Storage (for export) | H42: 2022-05-01 | I42: 2022-05-31 | J42: 01.05.22 - 31.05.22 (1 months) | K42: As per FFR framework agreement | L42: 700 | M42: 1500 | N42: 8 | O42: 700 | P42: 1500 | Q42: 8 | R42: 700 | S42: 1500 | T42: 8 | U42: 329.8 | X42: YES | AC42: 8 | AD42: 20 | AE42: 20 | AF42: 8 | AG42: 20 | AH42: 8 | AI42: 20 | AP42: SK10
A43: 148.047 | B43: Accepted | C43: NA | D43: EDF Energy Customers Limited | E43: AG -GEDF01 | F43: DNO connection | G43: DSF: Storage (for export) | H43: 2022-05-01 | I43: 2022-05-31 | J43: 01.05.22 - 31.05.22 (1 months) | K43: As per FFR framework agreement | L43: 1500 | M43: 2300 | N43: 8 | O43: 1500 | P43: 2300 | Q43: 8 | R43: 1500 | S43: 2300 | T43: 8 | U43: 819.8 | X43: YES | AC43: 8 | AD43: 20 | AE43: 20 | AF43: 8 | AG43: 20 | AH43: 8 | AI43: 20 | AP43: SK10
A44: 148.048 | B44: Rejected | C44: 2 | D44: EDF Energy Customers Limited | E44: AG -GEDF02 | F44: DNO connection | G44: DSF: Storage (for export) | H44: 2022-04-30 | I44: 2022-05-31 | J44: 30.04.22 - 31.05.22 (1 months) | K44: As per FFR framework agreement | L44: 2300 | M44: 700 | N44: 8 | O44: 2300 | P44: 700 | Q44: 8 | R44: 2300 | S44: 700 | T44: 8 | U44: 229.4 | X44: YES | AC44: 8 | AD44: 20 | AE44: 20 | AF44: 8 | AG44: 20 | AH44: 8 | AI44: 20 | AP44: BL9 5
A45: 148.049 | B45: Rejected | C45: 2 | D45: EDF Energy Customers Limited | E45: AG -GEDF02 | F45: DNO connection | G45: DSF: Storage (for export) | H45: 2022-05-01 | I45: 2022-05-31 | J45: 01.05.22 - 31.05.22 (1 months) | K45: As per FFR framework agreement | L45: 700 | M45: 1500 | N45: 8 | O45: 700 | P45: 1500 | Q45: 8 | R45: 700 | S45: 1500 | T45: 8 | U45: 329.4 | X45: YES | AC45: 8 | AD45: 20 | AE45: 20 | AF45: 8 | AG45: 20 | AH45: 8 | AI45: 20 | AP45: BL9 5
A46: 148.05 | B46: Accepted | C46: NA | D46: EDF Energy Customers Limited | E46: AG -GEDF02 | F46: DNO connection | G46: DSF: Storage (for export) | H46: 2022-05-01 | I46: 2022-05-31 | J46: 01.05.22 - 31.05.22 (1 months) | K46: As per FFR framework agreement | L46: 1500 | M46: 2300 | N46: 8 | O46: 1500 | P46: 2300 | Q46: 8 | R46: 1500 | S46: 2300 | T46: 8 | U46: 819.4 | X46: YES | AC46: 8 | AD46: 20 | AE46: 20 | AF46: 8 | AG46: 20 | AH46: 8 | AI46: 20 | AP46: BL9 5
A47: =A46+0.004 -> 148.054 | B47: Accepted | C47: NA | D47: EDF Energy Customers Limited | E47: WBURB-41 | F47: TO connection | G47: DSF: Storage (for export) | H47: 2022-04-30 | I47: 2022-05-31 | J47: 30.04.22 - 31.05.22 (1 months) | K47: As per FFR framework agreement | L47: 2300 | M47: 2300 | N47: 24 | O47: 2300 | P47: 2300 | Q47: 24 | R47: 2300 | S47: 2300 | T47: 24 | U47: 227.81 | X47: YES | AC47: 7.6 | AD47: 19 | AE47: 19 | AF47: 7.6 | AG47: 19 | AH47: 7.6 | AI47: 19 | AP47: DN22
A48: 148.055 | B48: Accepted | C48: NA | D48: EDF Energy Customers Limited | E48: WBURB-43 | F48: TO connection | G48: DSF: Storage (for export) | H48: 2022-04-30 | I48: 2022-05-31 | J48: 30.04.22 - 31.05.22 (1 months) | K48: As per FFR framework agreement | L48: 2300 | M48: 2300 | N48: 24 | O48: 2300 | P48: 2300 | Q48: 24 | R48: 2300 | S48: 2300 | T48: 24 | U48: 347.71 | X48: YES | AC48: 11.6 | AD48: 29 | AE48: 29 | AF48: 11.6 | AG48: 29 | AH48: 11.6 | AI48: 29 | AP48: DN22
A49: 148.056 | B49: Accepted | C49: NA | D49: First Renewable Alpha Limited | E49: TREGN-1 | F49: DNO connection | G49: Diesel | H49: 2022-04-30 | I49: 2022-05-31 | J49: 30.04.22 - 31.05.22 (1 months) | K49: As per FFR framework agreement | L49: 2300 | M49: 700 | N49: 8 | O49: 2300 | P49: 700 | Q49: 8 | R49: 2300 | S49: 700 | T49: 8 | U49: 76 | AO49: 20 | AP49: PL32
A50: 148.057 | B50: Accepted | C50: NA | D50: First Renewable Alpha Limited | E50: TREGN-1 | F50: DNO connection | G50: Diesel | H50: 2022-05-01 | I50: 2022-05-31 | J50: 01.05.22 - 31.05.22 (1 months) | K50: as per FFR framework agreement | L50: 700 | M50: 1500 | N50: 8 | O50: 700 | P50: 1500 | Q50: 8 | R50: 700 | S50: 1500 | T50: 8 | U50: 76 | AO50: 20 | AP50: PL32
A51: 148.058 | B51: Accepted | C51: NA | D51: First Renewable Alpha Limited | E51: TREGN-1 | F51: DNO connection | G51: Diesel | H51: 2022-05-01 | I51: 2022-05-31 | J51: 01.05.22 - 31.05.22 (1 months) | K51: As per FFR framework agreement | L51: 1500 | M51: 2300 | N51: 8 | O51: 1500 | P51: 2300 | Q51: 8 | R51: 1500 | S51: 2300 | T51: 8 | U51: 76 | AO51: 20 | AP51: PL32
A52: 148.059 | B52: Accepted | C52: NA | D52: Flexitricity Limited | E52: AG-FLX00L | F52: DNO connection | G52: DSF: Storage (for export) | H52: 2022-04-30 | I52: 2022-05-31 | J52: 30.04.22 - 31.05.22 (1 months) | K52: As per FFR framework agreement | L52: 2300 | M52: 700 | N52: 8 | O52: 2300 | P52: 700 | Q52: 8 | R52: 2300 | S52: 700 | T52: 8 | U52: 37.8 | V52: 0 | X52: YES | AC52: 1.6 | AD52: 4 | AE52: 4 | AF52: 1.6 | AG52: 4 | AH52: 1.6 | AI52: 4 | AP52: EX34/EX31
A53: 148.06 | B53: Accepted | C53: NA | D53: Flexitricity Limited | E53: AG-FLX00L | F53: DNO connection | G53: DSF: Storage (for export) | H53: 2022-05-01 | I53: 2022-05-31 | J53: 01.05.22 - 31.05.22 (1 months) | K53: As per FFR framework agreement | L53: 700 | M53: 1500 | N53: 8 | O53: 700 | P53: 1500 | Q53: 8 | R53: 700 | S53: 1500 | T53: 8 | U53: 41.72 | V53: 0 | X53: YES | AC53: 1.6 | AD53: 4 | AE53: 4 | AF53: 1.6 | AG53: 4 | AH53: 1.6 | AI53: 4 | AP53: EX34/EX31
A54: 148.061 | B54: Accepted | C54: NA | D54: Flexitricity Limited | E54: AG-FLX00L | F54: DNO connection | G54: DSF: Storage (for export) | H54: 2022-05-01 | I54: 2022-05-31 | J54: =IFERROR(TEXT(H54,"DD.MM.YY")&" - "&TEXT(I54,"DD.MM.YY")&" ("&DATEDIF(H54,I54+1,"m")&" months)","Tender End Date is Before Start Date") -> 01.05.22 - 31.05.22 (1 months) | K54: As per FFR framework agreement | L54: 1500 | M54: 2300 | N54: 8 | O54: 1500 | P54: 2300 | Q54: 8 | R54: 1500 | S54: 2300 | T54: 8 | U54: 97.8 | V54: 0 | X54: YES | AC54: 1.6 | AD54: 4 | AE54: 4 | AF54: 1.6 | AG54: 4 | AH54: 1.6 | AI54: 4 | AP54: EX34/EX31
A55: 148.062 | B55: Accepted | C55: NA | D55: Flexitricity Limited | E55: AG-BFLX01 | F55: DNO connection | G55: DSF: Storage (for export) | H55: 2022-04-30 | I55: 2022-05-31 | J55: 30.04.22 - 31.05.22 (1 months) | K55: As per FFR framework agreement | L55: 2300 | M55: 700 | N55: 8 | O55: 2300 | P55: 700 | Q55: 8 | R55: 2300 | S55: 700 | T55: 8 | U55: 47.2 | V55: 0 | X55: YES | AC55: 2 | AD55: 5 | AE55: 5 | AF55: 2 | AG55: 5 | AH55: 2 | AI55: 5 | AP55: NG32
A56: 148.063 | B56: Accepted | C56: NA | D56: Flexitricity Limited | E56: AG-BFLX01 | F56: DNO connection | G56: DSF: Storage (for export) | H56: 2022-05-01 | I56: 2022-05-31 | J56: 01.05.22 - 31.05.22 (1 months) | K56: As per FFR framework agreement | L56: 700 | M56: 1500 | N56: 8 | O56: 700 | P56: 1500 | Q56: 8 | R56: 700 | S56: 1500 | T56: 8 | U56: 55.95 | V56: 0 | X56: YES | AC56: 2 | AD56: 5 | AE56: 5 | AF56: 2 | AG56: 5 | AH56: 2 | AI56: 5 | AP56: NG32
A57: 148.064 | B57: Accepted | C57: NA | D57: Flexitricity Limited | E57: AG-BFLX01 | F57: DNO connection | G57: DSF: Storage (for export) | H57: 2022-05-01 | I57: 2022-05-31 | J57: =IFERROR(TEXT(H57,"DD.MM.YY")&" - "&TEXT(I57,"DD.MM.YY")&" ("&DATEDIF(H57,I57+1,"m")&" months)","Tender End Date is Before Start Date") -> 01.05.22 - 31.05.22 (1 months) | K57: As per FFR framework agreement | L57: 1500 | M57: 2300 | N57: 8 | O57: 1500 | P57: 2300 | Q57: 8 | R57: 1500 | S57: 2300 | T57: 8 | U57: 122.2 | V57: 0 | X57: YES | AC57: 2 | AD57: 5 | AE57: 5 | AF57: 2 | AG57: 5 | AH57: 2 | AI57: 5 | AP57: NG32
A58: 148.065 | B58: Accepted | C58: NA | D58: Flexitricity Limited | E58: AG-BFLX02 | F58: DNO connection | G58: DSF: Storage (for export) | H58: 2022-04-30 | I58: 2022-05-31 | J58: 30.04.22 - 31.05.22 (1 months) | K58: As per FFR framework agreement | L58: 2300 | M58: 700 | N58: 8 | O58: 2300 | P58: 700 | Q58: 8 | R58: 2300 | S58: 700 | T58: 8 | U58: 94.2 | V58: 0 | X58: YES | AC58: 4 | AD58: 10 | AE58: 10 | AF58: 4 | AG58: 10 | AH58: 4 | AI58: 10 | AP58: DE12
A59: =A58+0.001 -> 148.066 | B59: Accepted | C59: NA | D59: Flexitricity Limited | E59: AG-BFLX02 | F59: DNO connection | G59: DSF: Storage (for export) | H59: 2022-05-01 | I59: 2022-05-31 | J59: 01.05.22 - 31.05.22 (1 months) | K59: As per FFR framework agreement | L59: 700 | M59: 1500 | N59: 8 | O59: 700 | P59: 1500 | Q59: 8 | R59: 700 | S59: 1500 | T59: 8 | U59: 114.75 | V59: 0 | X59: YES | AC59: 4 | AD59: 10 | AE59: 10 | AF59: 4 | AG59: 10 | AH59: 4 | AI59: 10 | AP59: DE12
A60: 148.067 | B60: Accepted | C60: NA | D60: Flexitricity Limited | E60: AG-BFLX02 | F60: DNO connection | G60: DSF: Storage (for export) | H60: 2022-05-01 | I60: 2022-05-31 | J60: 01.05.22 - 31.05.22 (1 months) | K60: As per FFR framework agreement | L60: 1500 | M60: 2300 | N60: 8 | O60: 1500 | P60: 2300 | Q60: 8 | R60: 1500 | S60: 2300 | T60: 8 | U60: 244.2 | V60: 0 | X60: YES | AC60: 4 | AD60: 10 | AE60: 10 | AF60: 4 | AG60: 10 | AH60: 4 | AI60: 10 | AP60: DE12
A61: 148.068 | B61: Accepted | C61: NA | D61: Flexitricity Limited | E61: AG-EFLX01 | F61: DNO connection | G61: DSF: Storage (for export) | H61: 2022-04-30 | I61: 2022-05-31 | J61: 30.04.22 - 31.05.22 (1 months) | K61: As per FFR framework agreement | L61: 2300 | M61: 700 | N61: 8 | O61: 2300 | P61: 700 | Q61: 8 | R61: 2300 | S61: 700 | T61: 8 | U61: 178.98 | V61: 0 | X61: YES | AC61: 7.6 | AD61: 19 | AE61: 19 | AF61: 7.6 | AG61: 19 | AH61: 7.6 | AI61: 19 | AP61: HR1 4
A62: 148.069 | B62: Accepted | C62: NA | D62: Flexitricity Limited | E62: AG-EFLX01 | F62: DNO connection | G62: DSF: Storage (for export) | H62: 2022-05-01 | I62: 2022-05-31 | J62: 01.05.22 - 31.05.22 (1 months) | K62: As per FFR framework agreement | L62: 700 | M62: 1500 | N62: 8 | O62: 700 | P62: 1500 | Q62: 8 | R62: 700 | S62: 1500 | T62: 8 | U62: 217.55 | V62: 0 | X62: YES | AC62: 7.6 | AD62: 19 | AE62: 19 | AF62: 7.6 | AG62: 19 | AH62: 7.6 | AI62: 19 | AP62: HR1 4
A63: 148.07 | B63: Accepted | C63: NA | D63: Flexitricity Limited | E63: AG-EFLX01 | F63: DNO connection | G63: DSF: Storage (for export) | H63: 2022-05-01 | I63: 2022-05-31 | J63: 01.05.22 - 31.05.22 (1 months) | K63: As per FFR framework agreement | L63: 1500 | M63: 2300 | N63: 8 | O63: 1500 | P63: 2300 | Q63: 8 | R63: 1500 | S63: 2300 | T63: 8 | U63: 463.98 | V63: 0 | X63: YES | AC63: 7.6 | AD63: 19 | AE63: 19 | AF63: 7.6 | AG63: 19 | AH63: 7.6 | AI63: 19 | AP63: HR1 4
A64: 148.071 | B64: Rejected | C64: 2 | D64: Flexitricity Limited | E64: AG-MFLX02 | F64: DNO connection | G64: DSF: Storage (for export) | H64: 2022-04-30 | I64: 2022-05-31 | J64: 30.04.22 - 31.05.22 (1 months) | K64: As per FFR framework agreement | L64: 2300 | M64: 700 | N64: 8 | O64: 2300 | P64: 700 | Q64: 8 | R64: 2300 | S64: 700 | T64: 8 | U64: 503.23 | V64: 0 | X64: YES | AC64: 19.96 | AD64: 49 | AE64: 49 | AF64: 19.96 | AG64: 49 | AH64: 19.96 | AI64: 49 | AP64: S66 9
A65: 148.072 | B65: Rejected | C65: 2 | D65: Flexitricity Limited | E65: AG-MFLX02 | F65: DNO connection | G65: DSF: Storage (for export) | H65: 2022-05-01 | I65: 2022-05-31 | J65: 01.05.22 - 31.05.22 (1 months) | K65: As per FFR framework agreement | L65: 700 | M65: 1500 | N65: 8 | O65: 700 | P65: 1500 | Q65: 8 | R65: 700 | S65: 1500 | T65: 8 | U65: 731.08 | V65: 0 | X65: YES | AC65: 19.96 | AD65: 49 | AE65: 49 | AF65: 19.96 | AG65: 49 | AH65: 19.96 | AI65: 49 | AP65: S66 9
A66: 148.073 | B66: Accepted | C66: NA | D66: Flexitricity Limited | E66: AG-MFLX02 | F66: DNO connection | G66: DSF: Storage (for export) | H66: 2022-05-01 | I66: 2022-05-31 | J66: 01.05.22 - 31.05.22 (1 months) | K66: As per FFR framework agreement | L66: 1500 | M66: 2300 | N66: 8 | O66: 1500 | P66: 2300 | Q66: 8 | R66: 1500 | S66: 2300 | T66: 8 | U66: 1775.27 | V66: 0 | X66: YES | AC66: 19.96 | AD66: 49 | AE66: 49 | AF66: 19.96 | AG66: 49 | AH66: 19.96 | AI66: 49 | AP66: S66 9
A67: 148.074 | B67: Accepted | C67: NA | D67: OSSPV001 Limited | E67: E_ARNKB-2 | F67: DNO connection | G67: DSF: Storage (for export) | H67: 2022-04-30 | I67: 2022-05-31 | J67: 30.04.22 - 31.05.22 (1 months) | K67: As per FFR framework agreement | L67: 2300 | M67: 700 | N67: 8 | O67: 2300 | P67: 700 | Q67: 8 | R67: 2300 | S67: 700 | T67: 8 | U67: 94.1 | V67: 0 | X67: YES | AC67: 2 | AD67: 10 | AE67: 10 | AF67: 2 | AG67: 10 | AH67: 2 | AI67: 10 | AP67: CM13
A68: 148.075 | B68: Accepted | C68: NA | D68: OSSPV001 Limited | E68: E_ARNKB-2 | F68: DNO connection | G68: DSF: Storage (for export) | H68: 2022-05-01 | I68: 2022-05-31 | J68: 01.05.22 - 31.05.22 (1 months) | K68: As per FFR framework agreement | L68: 700 | M68: 1500 | N68: 8 | O68: 700 | P68: 1500 | Q68: 8 | R68: 700 | S68: 1500 | T68: 8 | U68: 114.25 | V68: 0 | X68: YES | AC68: 2 | AD68: 10 | AE68: 10 | AF68: 2 | AG68: 10 | AH68: 2 | AI68: 10 | AP68: CM13
A69: 148.076 | B69: Accepted | C69: NA | D69: OSSPV001 Limited | E69: E_ARNKB-2 | F69: DNO connection | G69: DSF: Storage (for export) | H69: 2022-05-01 | I69: 2022-05-31 | J69: 01.05.22 - 31.05.22 (1 months) | K69: As per FFR framework agreement | L69: 1500 | M69: 2300 | N69: 8 | O69: 1500 | P69: 2300 | Q69: 8 | R69: 1500 | S69: 2300 | T69: 8 | U69: 244.1 | V69: 0 | X69: YES | AC69: 2 | AD69: 10 | AE69: 10 | AF69: 2 | AG69: 10 | AH69: 2 | AI69: 10 | AP69: CM13
A70: 148.077 | B70: Rejected | C70: 2 | D70: Flexitricity Limited | E70: AG-NFLX01 | F70: DNO connection | G70: DSF: Storage (for export) | H70: 2022-04-30 | I70: 2022-05-31 | J70: 30.04.22 - 31.05.22 (1 months) | K70: As per FFR framework agreement | L70: 2300 | M70: 700 | N70: 8 | O70: 2300 | P70: 700 | Q70: 8 | R70: 2300 | S70: 700 | T70: 8 | U70: 107.52 | V70: 0 | X70: YES | AC70: 3.2 | AD70: 8 | AE70: 8 | AF70: 3.2 | AG70: 8 | AH70: 3.2 | AI70: 8 | AP70: KY1 3
A71: 148.078 | B71: Rejected | C71: 2 | D71: Flexitricity Limited | E71: AG-NFLX01 | F71: DNO connection | G71: DSF: Storage (for export) | H71: 2022-05-01 | I71: 2022-05-31 | J71: 01.05.22 - 31.05.22 (1 months) | K71: As per FFR framework agreement | L71: 700 | M71: 1500 | N71: 8 | O71: 700 | P71: 1500 | Q71: 8 | R71: 700 | S71: 1500 | T71: 8 | U71: 140.48 | V71: 0 | X71: YES | AC71: 3.2 | AD71: 8 | AE71: 8 | AF71: 3.2 | AG71: 8 | AH71: 3.2 | AI71: 8 | AP71: KY1 3
A72: 148.079 | B72: Rejected | C72: 2 | D72: Flexitricity Limited | E72: AG-NFLX01 | F72: DNO connection | G72: DSF: Storage (for export) | H72: 2022-05-01 | I72: 2022-05-31 | J72: 01.05.22 - 31.05.22 (1 months) | K72: As per FFR framework agreement | L72: 1500 | M72: 2300 | N72: 8 | O72: 1500 | P72: 2300 | Q72: 8 | R72: 1500 | S72: 2300 | T72: 8 | U72: 390.4 | V72: 0 | X72: YES | AC72: 3.2 | AD72: 8 | AE72: 8 | AF72: 3.2 | AG72: 8 | AH72: 3.2 | AI72: 8 | AP72: KY1 3
A73: 148.08 | B73: Accepted | C73: NA | D73: GridBeyond Limited | E73: GBND-2 | F73: DNO connection | G73: DSF: Load response | H73: 2022-04-30 | I73: 2022-05-31 | J73: 30.04.22 - 31.05.22 (1 months) | K73: As per FFR framework agreement | L73: 2300 | M73: 700 | N73: 8 | U73: 225 | AC73: 12 | AD73: 30 | AE73: 30 | AF73: 12 | AG73: 30 | AH73: 6 | AI73: 15 | AL73: A
A74: 148.081 | B74: Accepted | C74: NA | D74: GridBeyond Limited | E74: GBND-2 | F74: DNO connection | G74: DSF: Load response | H74: 2022-05-01 | I74: 2022-05-31 | J74: 01.05.22 - 31.05.22 (1 months) | K74: As per FFR framework agreement | L74: 700 | M74: 1500 | N74: 8 | U74: 240 | AC74: 12 | AD74: 30 | AE74: 30 | AF74: 12 | AG74: 30 | AH74: 6 | AI74: 15 | AL74: B
A75: 148.082 | B75: Accepted | C75: NA | D75: GridBeyond Limited | E75: GBND-2 | F75: DNO connection | G75: DSF: Load response | H75: 2022-05-01 | I75: 2022-05-31 | J75: 01.05.22 - 31.05.22 (1 months) | K75: As per FFR framework agreement | L75: 1500 | M75: 2300 | N75: 8 | U75: 614.1 | AC75: 10.8 | AD75: 27 | AE75: 27 | AF75: 10.8 | AG75: 27 | AH75: 6 | AI75: 15 | AL75: C
A76: 148.083 | B76: Accepted | C76: NA | D76: GridBeyond Limited | E76: GBND-2 | F76: DNO connection | G76: DSF: Load response | H76: 2022-04-30 | I76: 2022-05-31 | J76: 30.04.22 - 31.05.22 (1 months) | K76: As per FFR framework agreement | O76: 2300 | P76: 700 | Q76: 8 | U76: 153 | AC76: 7.2 | AD76: 18 | AE76: 18 | AF76: 7.2 | AG76: 18 | AH76: 6 | AI76: 15 | AL76: A
A77: 148.084 | B77: Accepted | C77: NA | D77: GridBeyond Limited | E77: GBND-2 | F77: DNO connection | G77: DSF: Load response | H77: 2022-05-01 | I77: 2022-05-31 | J77: 01.05.22 - 31.05.22 (1 months) | K77: As per FFR framework agreement | O77: 700 | P77: 1500 | Q77: 8 | U77: 163.2 | AC77: 7.2 | AD77: 18 | AE77: 18 | AF77: 7.2 | AG77: 18 | AH77: 6 | AI77: 15 | AL77: B
A78: 148.085 | B78: Accepted | C78: NA | D78: GridBeyond Limited | E78: GBND-2 | F78: DNO connection | G78: DSF: Load response | H78: 2022-05-01 | I78: 2022-05-31 | J78: 01.05.22 - 31.05.22 (1 months) | K78: As per FFR framework agreement | O78: 1500 | P78: 2300 | Q78: 8 | U78: 418.3 | AC78: 6.4 | AD78: 16 | AE78: 16 | AF78: 6.4 | AG78: 16 | AH78: 6 | AI78: 15 | AL78: C
A79: 148.086 | B79: Accepted | C79: NA | D79: GridBeyond Limited | E79: GBND-2 | F79: DNO connection | G79: DSF: Load response | H79: 2022-04-30 | I79: 2022-05-31 | J79: 30.04.22 - 31.05.22 (1 months) | K79: As per FFR framework agreement | R79: 2300 | S79: 700 | T79: 8 | U79: 120 | AC79: 5.2 | AD79: 13 | AE79: 13 | AF79: 5.2 | AG79: 13 | AH79: 5.6 | AI79: 14 | AL79: A
A80: 148.087 | B80: Accepted | C80: NA | D80: GridBeyond Limited | E80: GBND-2 | F80: DNO connection | G80: DSF: Load response | H80: 2022-05-01 | I80: 2022-05-31 | J80: 01.05.22 - 31.05.22 (1 months) | K80: As per FFR framework agreement | R80: 700 | S80: 1500 | T80: 8 | U80: 128 | AC80: 5.2 | AD80: 13 | AE80: 13 | AF80: 5.2 | AG80: 13 | AH80: 5.6 | AI80: 14 | AL80: B
A81: 148.088 | B81: Accepted | C81: NA | D81: GridBeyond Limited | E81: GBND-2 | F81: DNO connection | G81: DSF: Load response | H81: 2022-05-01 | I81: 2022-05-31 | J81: 01.05.22 - 31.05.22 (1 months) | K81: As per FFR framework agreement | R81: 1500 | S81: 2300 | T81: 8 | U81: 409.4 | AC81: 6.4 | AD81: 16 | AE81: 16 | AF81: 6.4 | AG81: 16 | AH81: 5.6 | AI81: 14 | AL81: C
A82: 148.089 | B82: Accepted | C82: NA | D82: GridBeyond Limited | E82: ENDSR-1 | F82: DNO connection | G82: DSF: Load response | H82: 2022-04-30 | I82: 2022-05-31 | J82: 30.04.22 - 31.05.22 (1 months) | K82: As per FFR framework agreement | L82: 2300 | M82: 300 | N82: 4 | O82: 2300 | P82: 300 | Q82: 4 | R82: 2300 | S82: 300 | T82: 4 | U82: 15.16 | AL82: D | AO82: 4
A83: 148.09 | B83: Accepted | C83: NA | D83: GridBeyond Limited | E83: ENDSR-1 | F83: DNO connection | G83: DSF: Load response | H83: 2022-05-01 | I83: 2022-05-31 | J83: 01.05.22 - 31.05.22 (1 months) | K83: As per FFR framework agreement | L83: 300 | M83: 700 | N83: 4 | O83: 300 | P83: 700 | Q83: 4 | R83: 300 | S83: 700 | T83: 4 | U83: 15.92 | AL83: D | AO83: 4
A84: 148.091 | B84: Accepted | C84: NA | D84: GridBeyond Limited | E84: ENDSR-1 | F84: DNO connection | G84: DSF: Load response | H84: 2022-05-01 | I84: 2022-05-31 | J84: 01.05.22 - 31.05.22 (1 months) | K84: As per FFR framework agreement | L84: 700 | M84: 1500 | N84: 8 | O84: 700 | P84: 1500 | Q84: 8 | R84: 700 | S84: 1500 | T84: 8 | U84: 11.94 | AO84: 3
A85: 148.092 | B85: Accepted | C85: NA | D85: GridBeyond Limited | E85: ENDSR-1 | F85: DNO connection | G85: DSF: Load response | H85: 2022-05-01 | I85: 2022-05-31 | J85: 01.05.22 - 31.05.22 (1 months) | K85: As per FFR framework agreement | L85: 1500 | M85: 2300 | N85: 8 | O85: 1500 | P85: 2300 | Q85: 8 | R85: 1500 | S85: 2300 | T85: 8 | U85: 11.94 | AO85: 3
A86: 148.093 | B86: Accepted | C86: NA | D86: GridBeyond Limited | E86: ENDSR-2 | F86: DNO connection | G86: DSF: Load response | H86: 2022-04-30 | I86: 2022-05-31 | J86: 30.04.22 - 31.05.22 (1 months) | K86: As per FFR framework agreement | L86: 2300 | M86: 300 | N86: 4 | O86: 2300 | P86: 300 | Q86: 4 | R86: 2300 | S86: 300 | T86: 4 | U86: 11.37 | AL86: E | AO86: 3
A87: =A86+0.001 -> 148.094 | B87: Accepted | C87: NA | D87: GridBeyond Limited | E87: ENDSR-2 | F87: DNO connection | G87: DSF: Load response | H87: 2022-05-01 | I87: 2022-05-31 | J87: 01.05.22 - 31.05.22 (1 months) | K87: As per FFR framework agreement | L87: 300 | M87: 700 | N87: =IF(L87>M87, (2400-L87+M87)/100, IF(AND(L87="",M87="",L87=M87), "", IF(L87=M87,24,(M87-L87)/100))) -> 4 | O87: 300 | P87: 700 | Q87: =IF(O87>P87, (2400-O87+P87)/100, IF(AND(O87="",P87="",O87=P87), "", IF(O87=P87,24,(P87-O87)/100))) -> 4 | R87: 300 | S87: 700 | T87: =IF(R87>S87, (2400-R87+S87)/100, IF(AND(R87="",S87="",R87=S87), "", IF(R87=S87,24,(S87-R87)/100))) -> 4 | U87: 11.94 | AL87: E | AO87: 3
A88: 148.095 | B88: Accepted | C88: NA | D88: GridBeyond Limited | E88: ENDSR-2 | F88: DNO connection | G88: DSF: Load response | H88: 2022-05-01 | I88: 2022-05-31 | J88: 01.05.22 - 31.05.22 (1 months) | K88: As per FFR framework agreement | L88: 700 | M88: 1500 | N88: 8 | O88: 700 | P88: 1500 | Q88: 8 | R88: 700 | S88: 1500 | T88: 8 | U88: 11.94 | AO88: 3
A89: 148.096 | B89: Accepted | C89: NA | D89: GridBeyond Limited | E89: ENDSR-2 | F89: DNO connection | G89: DSF: Load response | H89: 2022-05-01 | I89: 2022-05-31 | J89: 01.05.22 - 31.05.22 (1 months) | K89: As per FFR framework agreement | L89: 1500 | M89: 2300 | N89: 8 | O89: 1500 | P89: 2300 | Q89: 8 | R89: 1500 | S89: 2300 | T89: 8 | U89: 11.94 | AO89: 3
A90: =A89+0.001 -> 148.097 | B90: Accepted | C90: NA | D90: GridBeyond Limited | E90: ENDSR-4 | F90: DNO connection | G90: DSF: Load response | H90: 2022-04-30 | I90: 2022-05-31 | J90: 30.04.22 - 31.05.22 (1 months) | K90: As per FFR framework agreement | L90: 2300 | M90: 300 | N90: 4 | O90: 2300 | P90: 300 | Q90: 4 | R90: 2300 | S90: 300 | T90: 4 | U90: 11.37 | AL90: F | AO90: 3
A91: 148.098 | B91: Accepted | C91: NA | D91: GridBeyond Limited | E91: ENDSR-4 | F91: DNO connection | G91: DSF: Load response | H91: 2022-05-01 | I91: 2022-05-31 | J91: 01.05.22 - 31.05.22 (1 months) | K91: As per FFR framework agreement | L91: 300 | M91: 700 | N91: 4 | O91: 300 | P91: 700 | Q91: 4 | R91: 300 | S91: 700 | T91: 4 | U91: 11.94 | AL91: F | AO91: 3
A92: 148.099 | B92: Accepted | C92: NA | D92: GridBeyond Limited | E92: ENDSR-4 | F92: DNO connection | G92: DSF: Load response | H92: 2022-05-01 | I92: 2022-05-31 | J92: 01.05.22 - 31.05.22 (1 months) | K92: As per FFR framework agreement | L92: 700 | M92: 1500 | N92: 8 | O92: 700 | P92: 1500 | Q92: 8 | R92: 700 | S92: 1500 | T92: 8 | U92: 15.92 | AO92: 4
A93: 148.1 | B93: Accepted | C93: NA | D93: GridBeyond Limited | E93: ENDSR-4 | F93: DNO connection | G93: DSF: Load response | H93: 2022-05-01 | I93: 2022-05-31 | J93: 01.05.22 - 31.05.22 (1 months) | K93: As per FFR framework agreement | L93: 1500 | M93: 2300 | N93: 8 | O93: 1500 | P93: 2300 | Q93: 8 | R93: 1500 | S93: 2300 | T93: 8 | U93: 11.94 | AO93: 3
A94: 148.101 | B94: Accepted | C94: NA | D94: GridBeyond Limited | E94: ENDSR-3 | F94: DNO connection | G94: DSF: Load response | H94: 2022-04-30 | I94: 2022-05-31 | J94: 30.04.22 - 31.05.22 (1 months) | K94: As per FFR framework agreement | L94: 2300 | M94: 300 | N94: 4 | O94: 2300 | P94: 300 | Q94: 4 | R94: 2300 | S94: 300 | T94: 4 | U94: 18.95 | AL94: G | AO94: 5
A95: 148.102 | B95: Accepted | C95: NA | D95: GridBeyond Limited | E95: ENDSR-3 | F95: DNO connection | G95: DSF: Load response | H95: 2022-05-01 | I95: 2022-05-31 | J95: 01.05.22 - 31.05.22 (1 months) | K95: As per FFR framework agreement | L95: 300 | M95: 700 | N95: 4 | O95: 300 | P95: 700 | Q95: 4 | R95: 300 | S95: 700 | T95: 4 | U95: 19.9 | AL95: G | AO95: 5
A96: 148.103 | B96: Accepted | C96: NA | D96: GridBeyond Limited | E96: ENDSR-3 | F96: DNO connection | G96: DSF: Load response | H96: 2022-05-01 | I96: 2022-05-31 | J96: 01.05.22 - 31.05.22 (1 months) | K96: As per FFR framework agreement | L96: 700 | M96: 1500 | N96: 8 | O96: 700 | P96: 1500 | Q96: 8 | R96: 700 | S96: 1500 | T96: 8 | U96: 19.9 | AO96: 5
A97: 148.104 | B97: Accepted | C97: NA | D97: GridBeyond Limited | E97: ENDSR-3 | F97: DNO connection | G97: DSF: Load response | H97: 2022-05-01 | I97: 2022-05-31 | J97: 01.05.22 - 31.05.22 (1 months) | K97: As per FFR framework agreement | L97: 1500 | M97: 2300 | N97: 8 | O97: 1500 | P97: 2300 | Q97: 8 | R97: 1500 | S97: 2300 | T97: 8 | U97: 19.9 | AO97: 5
A98: 148.105 | B98: Accepted | C98: NA | D98: GridBeyond Limited | E98: ENDSR-6 | F98: DNO connection | G98: DSF: Load response | H98: 2022-04-30 | I98: 2022-05-31 | J98: 30.04.22 - 31.05.22 (1 months) | K98: As per FFR framework agreement | L98: 2300 | M98: 300 | N98: 4 | O98: 2300 | P98: 300 | Q98: 4 | R98: 2300 | S98: 300 | T98: 4 | U98: 75.8 | AL98: H | AO98: 20
A99: 148.106 | B99: Accepted | C99: NA | D99: GridBeyond Limited | E99: ENDSR-6 | F99: DNO connection | G99: DSF: Load response | H99: 2022-05-01 | I99: 2022-05-31 | J99: 01.05.22 - 31.05.22 (1 months) | K99: As per FFR framework agreement | L99: 300 | M99: 700 | N99: 4 | O99: 300 | P99: 700 | Q99: 4 | R99: 300 | S99: 700 | T99: 4 | U99: 79.6 | AL99: H | AO99: 20
A100: 148.107 | B100: Accepted | C100: NA | D100: GridBeyond Limited | E100: ENDSR-6 | F100: DNO connection | G100: DSF: Load response | H100: 2022-05-01 | I100: 2022-05-31 | J100: 01.05.22 - 31.05.22 (1 months) | K100: As per FFR framework agreement | L100: 700 | M100: 1500 | N100: 8 | O100: 700 | P100: 1500 | Q100: 8 | R100: 700 | S100: 1500 | T100: 8 | U100: 79.6 | AO100: 20
A101: 148.108 | B101: Accepted | C101: NA | D101: GridBeyond Limited | E101: ENDSR-6 | F101: DNO connection | G101: DSF: Load response | H101: 2022-05-01 | I101: 2022-05-31 | J101: 01.05.22 - 31.05.22 (1 months) | K101: As per FFR framework agreement | L101: 1500 | M101: 2300 | N101: 8 | O101: 1500 | P101: 2300 | Q101: 8 | R101: 1500 | S101: 2300 | T101: 8 | U101: 79.6 | AO101: 20
A102: 148.109 | B102: Accepted | C102: NA | D102: GridBeyond Limited | E102: ENDSR-8 | F102: DNO connection | G102: DSF: Load response | H102: 2022-04-30 | I102: 2022-05-31 | J102: 30.04.22 - 31.05.22 (1 months) | K102: As per FFR framework agreement | L102: 2300 | M102: 300 | N102: 4 | O102: 2300 | P102: 300 | Q102: 4 | R102: 2300 | S102: 300 | T102: 4 | U102: 26.53 | AL102: I | AO102: 7
A103: 148.11 | B103: Accepted | C103: NA | D103: GridBeyond Limited | E103: ENDSR-8 | F103: DNO connection | G103: DSF: Load response | H103: 2022-05-01 | I103: 2022-05-31 | J103: 01.05.22 - 31.05.22 (1 months) | K103: As per FFR framework agreement | L103: 300 | M103: 700 | N103: 4 | O103: 300 | P103: 700 | Q103: 4 | R103: 300 | S103: 700 | T103: 4 | U103: 27.86 | AL103: I | AO103: 7
A104: 148.111 | B104: Accepted | C104: NA | D104: GridBeyond Limited | E104: ENDSR-8 | F104: DNO connection | G104: DSF: Load response | H104: 2022-05-01 | I104: 2022-05-31 | J104: =IFERROR(TEXT(H104,"DD.MM.YY")&" - "&TEXT(I104,"DD.MM.YY")&" ("&DATEDIF(H104,I104+1,"m")&" months)","Tender End Date is Before Start Date") -> 01.05.22 - 31.05.22 (1 months) | K104: As per FFR framework agreement | L104: 700 | M104: 1500 | N104: 8 | O104: 700 | P104: 1500 | Q104: 8 | R104: 700 | S104: 1500 | T104: 8 | U104: 27.86 | AO104: 7
A105: 148.112 | B105: Accepted | C105: NA | D105: GridBeyond Limited | E105: ENDSR-8 | F105: DNO connection | G105: DSF: Load response | H105: 2022-05-01 | I105: 2022-05-31 | J105: =IFERROR(TEXT(H105,"DD.MM.YY")&" - "&TEXT(I105,"DD.MM.YY")&" ("&DATEDIF(H105,I105+1,"m")&" months)","Tender End Date is Before Start Date") -> 01.05.22 - 31.05.22 (1 months) | K105: As per FFR framework agreement | L105: 1500 | M105: 2300 | N105: 8 | O105: 1500 | P105: 2300 | Q105: 8 | R105: 1500 | S105: 2300 | T105: 8 | U105: 27.86 | AO105: 7
A106: 148.113 | B106: Accepted | C106: NA | D106: GridBeyond Limited | E106: ENDSR-9 | F106: DNO connection | G106: DSF: Load response | H106: 2022-04-30 | I106: 2022-05-31 | J106: 30.04.22 - 31.05.22 (1 months) | K106: As per FFR framework agreement | L106: 2300 | M106: 300 | N106: 4 | O106: 2300 | P106: 300 | Q106: 4 | R106: 2300 | S106: 300 | T106: 4 | U106: 30.32 | AL106: J | AO106: 8
A107: 148.114 | B107: Accepted | C107: NA | D107: GridBeyond Limited | E107: ENDSR-9 | F107: DNO connection | G107: DSF: Load response | H107: 2022-05-01 | I107: 2022-05-31 | J107: 01.05.22 - 31.05.22 (1 months) | K107: As per FFR framework agreement | L107: 300 | M107: 700 | N107: 4 | O107: 300 | P107: 700 | Q107: 4 | R107: 300 | S107: 700 | T107: 4 | U107: 31.84 | AL107: J | AO107: 8
A108: 148.115 | B108: Accepted | C108: NA | D108: GridBeyond Limited | E108: ENDSR-9 | F108: DNO connection | G108: DSF: Load response | H108: 2022-05-01 | I108: 2022-05-31 | J108: 01.05.22 - 31.05.22 (1 months) | K108: As per FFR framework agreement | L108: 700 | M108: 1500 | N108: 8 | O108: 700 | P108: 1500 | Q108: 8 | R108: 700 | S108: 1500 | T108: 8 | U108: 31.84 | AO108: 8
A109: 148.116 | B109: Accepted | C109: NA | D109: GridBeyond Limited | E109: ENDSR-9 | F109: DNO connection | G109: DSF: Load response | H109: 2022-05-01 | I109: 2022-05-31 | J109: 01.05.22 - 31.05.22 (1 months) | K109: As per FFR framework agreement | L109: 1500 | M109: 2300 | N109: 8 | O109: 1500 | P109: 2300 | Q109: 8 | R109: 1500 | S109: 2300 | T109: 8 | U109: 31.84 | AO109: 8
A110: 148.117 | B110: Accepted | C110: NA | D110: GridBeyond Limited | E110: ENDSR-5 | F110: DNO connection | G110: DSF: Load response | H110: 2022-04-30 | I110: 2022-05-31 | J110: 30.04.22 - 31.05.22 (1 months) | K110: As per FFR framework agreement | L110: 2300 | M110: 300 | N110: 4 | U110: 64.43 | AL110: K | AO110: 17
A111: 148.118 | B111: Accepted | C111: NA | D111: GridBeyond Limited | E111: ENDSR-5 | F111: DNO connection | G111: DSF: Load response | H111: 2022-05-01 | I111: 2022-05-31 | J111: 01.05.22 - 31.05.22 (1 months) | K111: As per FFR framework agreement | L111: 300 | M111: 700 | N111: 4 | U111: 67.66 | AL111: K | AO111: 17
A112: 148.119 | B112: Accepted | C112: NA | D112: GridBeyond Limited | E112: ENDSR-5 | F112: DNO connection | G112: DSF: Load response | H112: 2022-05-01 | I112: 2022-05-31 | J112: 01.05.22 - 31.05.22 (1 months) | K112: As per FFR framework agreement | L112: 700 | M112: 1500 | N112: 8 | U112: 63.68 | AL112: L | AO112: 16
A113: 148.12 | B113: Accepted | C113: NA | D113: GridBeyond Limited | E113: ENDSR-5 | F113: DNO connection | G113: DSF: Load response | H113: 2022-05-01 | I113: 2022-05-31 | J113: 01.05.22 - 31.05.22 (1 months) | K113: As per FFR framework agreement | L113: 1500 | M113: 2300 | N113: 8 | U113: 59.7 | AL113: M | AO113: 15
A114: 148.121 | B114: Accepted | C114: NA | D114: GridBeyond Limited | E114: ENDSR-5 | F114: DNO connection | G114: DSF: Load response | H114: 2022-04-30 | I114: 2022-05-31 | J114: 30.04.22 - 31.05.22 (1 months) | K114: As per FFR framework agreement | O114: 2300 | P114: 300 | Q114: 4 | R114: 2300 | S114: 300 | T114: 4 | U114: 56.85 | AL114: K | AO114: 15
A115: 148.122 | B115: Accepted | C115: NA | D115: GridBeyond Limited | E115: ENDSR-5 | F115: DNO connection | G115: DSF: Load response | H115: 2022-05-01 | I115: 2022-05-31 | J115: 01.05.22 - 31.05.22 (1 months) | K115: As per FFR framework agreement | O115: 300 | P115: 700 | Q115: 4 | R115: 300 | S115: 700 | T115: 4 | U115: 59.7 | AL115: K | AO115: 15
A116: 148.123 | B116: Accepted | C116: NA | D116: GridBeyond Limited | E116: ENDSR-5 | F116: DNO connection | G116: DSF: Load response | H116: 2022-05-01 | I116: 2022-05-31 | J116: =IFERROR(TEXT(H116,"DD.MM.YY")&" - "&TEXT(I116,"DD.MM.YY")&" ("&DATEDIF(H116,I116+1,"m")&" months)","Tender End Date is Before Start Date") -> 01.05.22 - 31.05.22 (1 months) | K116: As per FFR framework agreement | O116: 700 | P116: 1500 | Q116: 8 | R116: 700 | S116: 1500 | T116: 8 | U116: 59.7 | AL116: L | AO116: 15
A117: 148.124 | B117: Accepted | C117: NA | D117: GridBeyond Limited | E117: ENDSR-5 | F117: DNO connection | G117: DSF: Load response | H117: 2022-05-01 | I117: 2022-05-31 | J117: 01.05.22 - 31.05.22 (1 months) | K117: As per FFR framework agreement | O117: 1500 | P117: 2300 | Q117: 8 | R117: 1500 | S117: 2300 | T117: 8 | U117: 59.7 | AL117: M | AO117: 15
A118: 148.125 | B118: Accepted | C118: NA | D118: GridBeyond Limited | E118: ENDSR-7 | F118: DNO connection | G118: DSF: Load response | H118: 2022-04-30 | I118: 2022-05-31 | J118: 30.04.22 - 31.05.22 (1 months) | K118: As per FFR framework agreement | L118: 2300 | M118: 300 | N118: 4 | O118: 2300 | P118: 300 | Q118: 4 | R118: 2300 | S118: 300 | T118: 4 | U118: 45.48 | AL118: N | AO118: 12
A119: 148.126 | B119: Accepted | C119: NA | D119: GridBeyond Limited | E119: ENDSR-7 | F119: DNO connection | G119: DSF: Load response | H119: 2022-05-01 | I119: 2022-05-31 | J119: 01.05.22 - 31.05.22 (1 months) | K119: As per FFR framework agreement | L119: 300 | M119: 700 | N119: 4 | O119: 300 | P119: 700 | Q119: 4 | R119: 300 | S119: 700 | T119: 4 | U119: 47.76 | AL119: N | AO119: 12
A120: 148.127 | B120: Accepted | C120: NA | D120: GridBeyond Limited | E120: ENDSR-7 | F120: DNO connection | G120: DSF: Load response | H120: 2022-05-01 | I120: 2022-05-31 | J120: 01.05.22 - 31.05.22 (1 months) | K120: As per FFR framework agreement | L120: 700 | M120: 1500 | N120: 8 | O120: 700 | P120: 1500 | Q120: 8 | R120: 700 | S120: 1500 | T120: 8 | U120: 51.74 | AO120: 13
A121: 148.128 | B121: Accepted | C121: NA | D121: GridBeyond Limited | E121: ENDSR-7 | F121: DNO connection | G121: DSF: Load response | H121: 2022-05-01 | I121: 2022-05-31 | J121: 01.05.22 - 31.05.22 (1 months) | K121: As per FFR framework agreement | L121: 1500 | M121: 2300 | N121: 8 | O121: 1500 | P121: 2300 | Q121: 8 | R121: 1500 | S121: 2300 | T121: 8 | U121: 51.74 | AO121: 13
A122: =A121+0.003 -> 148.131 | B122: Rejected | C122: 2 | D122: Habitat Energy Limited | E122: COWB-1 | F122: TO connection | G122: Battery | H122: 2022-05-01 | I122: 2022-05-31 | J122: 01.05.22 - 31.05.22 (1 months) | K122: As per FFR framework agreement | L122: 1500 | M122: 2300 | N122: 8 | O122: 1500 | P122: 2300 | Q122: 8 | R122: 1500 | S122: 2300 | T122: 8 | U122: 1836 | V122: - | W122: - | X122: YES | AC122: 16 | AD122: 40 | AE122: 40 | AF122: 16 | AG122: 40 | AH122: 16 | AI122: 40 | AP122: OX4 7
A123: =A122+0.002 -> 148.133 | B123: Accepted | C123: NA | D123: Habitat Energy Limited | E123: AG-HEL00G | F123: DNO connection | G123: DSF: Storage (for export) | H123: 2022-05-01 | I123: 2022-05-31 | J123: 01.05.22 - 31.05.22 (1 months) | K123: As per FFR framework agreement | L123: 1500 | M123: 2300 | N123: 8 | O123: 1500 | P123: 2300 | Q123: 8 | R123: 1500 | S123: 2300 | T123: 8 | U123: 1907.08 | V123: - | W123: - | X123: YES | AC123: 19.6 | AD123: 49 | AE123: 49 | AF123: 19.6 | AG123: 49 | AH123: 19.6 | AI123: 49 | AP123: PR2 5
A124: =A123+0.001 -> 148.134 | B124: Rejected | C124: 2 | D124: Habitat Energy Limited | E124: AG-HEL01H | F124: DNO connection | G124: DSF: Storage (for export) | H124: 2022-04-30 | I124: 2022-05-31 | J124: 30.04.22 - 31.05.22 (1 months) | K124: As per FFR framework agreement | L124: 2300 | M124: 1500 | N124: 16 | O124: 2300 | P124: 1500 | Q124: 16 | R124: 2300 | S124: 1500 | T124: 16 | U124: 282.4 | V124: - | W124: - | X124: YES | AC124: 8 | AD124: 20 | AE124: 20 | AF124: 8 | AG124: 20 | AH124: 6.4 | AI124: 16 | AP124: SN12
A125: 148.135 | B125: Rejected | C125: 2 | D125: Habitat Energy Limited | E125: AG-HEL01H | F125: DNO connection | G125: DSF: Storage (for export) | H125: 2022-05-01 | I125: 2022-05-31 | J125: 01.05.22 - 31.05.22 (1 months) | K125: As per FFR framework agreement | L125: 1500 | M125: 2300 | N125: 8 | O125: 1500 | P125: 2300 | Q125: 8 | R125: 1500 | S125: 2300 | T125: 8 | U125: 784 | V125: - | W125: - | X125: YES | AC125: 8 | AD125: 20 | AE125: 20 | AF125: 8 | AG125: 20 | AH125: 6.4 | AI125: 16 | AP125: SN12
A126: 148.136 | B126: Accepted | C126: NA | D126: Kiwi Power Ltd | E126: KIWIS-1 | F126: DNO connection | G126: DSF: Load response | H126: 2022-04-30 | I126: 2022-05-31 | J126: 30.04.22 - 31.05.22 (1 months) | K126: As per FFR framework agreement | L126: 2300 | M126: 700 | N126: 8 | O126: 2300 | P126: 700 | Q126: 8 | R126: 2300 | S126: 700 | T126: 8 | U126: 55.5 | AO126: 15 | AP126: S33 6RP, ST10 3EQ
A127: 148.137 | B127: Accepted | C127: NA | D127: Kiwi Power Ltd | E127: KIWIS-1 | F127: DNO connection | G127: DSF: Load response | H127: 2022-05-01 | I127: 2022-05-31 | J127: 01.05.22 - 31.05.22 (1 months) | K127: As per FFR framework agreement | L127: 700 | M127: 1500 | N127: 8 | O127: 700 | P127: 1500 | Q127: 8 | R127: 700 | S127: 1500 | T127: 8 | U127: 56.25 | AO127: 15 | AP127: S33 6RP, ST10 3EQ
A128: 148.138 | B128: Accepted | C128: NA | D128: Kiwi Power Ltd | E128: KIWIS-1 | F128: DNO connection | G128: DSF: Load response | H128: 2022-05-01 | I128: 2022-05-31 | J128: 01.05.22 - 31.05.22 (1 months) | K128: As per FFR framework agreement | L128: 1500 | M128: 2300 | N128: 8 | O128: 1500 | P128: 2300 | Q128: 8 | R128: 1500 | S128: 2300 | T128: 8 | U128: 57 | AO128: 15 | AP128: S33 6RP, ST10 3EQ
A129: 148.139 | B129: Accepted | C129: NA | D129: Kiwi Power Ltd | E129: KIWIS-2 | F129: DNO connection | G129: DSF: Load response | H129: 2022-04-30 | I129: 2022-05-31 | J129: 30.04.22 - 31.05.22 (1 months) | K129: As per FFR framework agreement | L129: 2300 | M129: 700 | N129: 8 | O129: 2300 | P129: 700 | Q129: 8 | R129: 2300 | S129: 700 | T129: 8 | U129: 37 | AO129: 10 | AP129: N/A
A130: 148.14 | B130: Accepted | C130: NA | D130: Kiwi Power Ltd | E130: KIWIS-2 | F130: DNO connection | G130: DSF: Load response | H130: 2022-05-01 | I130: 2022-05-31 | J130: 01.05.22 - 31.05.22 (1 months) | K130: As per FFR framework agreement | L130: 700 | M130: 1500 | N130: 8 | O130: 700 | P130: 1500 | Q130: 8 | R130: 700 | S130: 1500 | T130: 8 | U130: 37.5 | AO130: 10 | AP130: N/A
A131: 148.141 | B131: Accepted | C131: NA | D131: Kiwi Power Ltd | E131: KIWIS-2 | F131: DNO connection | G131: DSF: Load response | H131: 2022-05-01 | I131: 2022-05-31 | J131: 01.05.22 - 31.05.22 (1 months) | K131: As per FFR framework agreement | L131: 1500 | M131: 2300 | N131: 8 | O131: 1500 | P131: 2300 | Q131: 8 | R131: 1500 | S131: 2300 | T131: 8 | U131: 38 | AO131: 10 | AP131: N/A
A132: 148.142 | B132: Accepted | C132: NA | D132: Kiwi Power Ltd | E132: KIWIS-3 | F132: DNO connection | G132: DSF: Load response | H132: 2022-04-30 | I132: 2022-05-31 | J132: 30.04.22 - 31.05.22 (1 months) | K132: As per FFR framework agreement | L132: 2300 | M132: 700 | N132: 8 | O132: 2300 | P132: 700 | Q132: 8 | R132: 2300 | S132: 700 | T132: 8 | U132: 11.1 | AO132: 3 | AP132: N/A
A133: 148.143 | B133: Accepted | C133: NA | D133: Kiwi Power Ltd | E133: KIWIS-3 | F133: DNO connection | G133: DSF: Load response | H133: 2022-05-01 | I133: 2022-05-31 | J133: 01.05.22 - 31.05.22 (1 months) | K133: As per FFR framework agreement | L133: 700 | M133: 1500 | N133: 8 | O133: 700 | P133: 1500 | Q133: 8 | R133: 700 | S133: 1500 | T133: 8 | U133: 11.25 | AO133: 3 | AP133: N/A
A134: =A133+0.001 -> 148.144 | B134: Accepted | C134: NA | D134: Kiwi Power Ltd | E134: KIWIS-3 | F134: DNO connection | G134: DSF: Load response | H134: 2022-05-01 | I134: 2022-05-31 | J134: 01.05.22 - 31.05.22 (1 months) | K134: As per FFR framework agreement | L134: 1500 | M134: 2300 | N134: 8 | O134: 1500 | P134: 2300 | Q134: 8 | R134: 1500 | S134: 2300 | T134: 8 | U134: 11.4 | AO134: 3 | AP134: N/A
A135: 148.145 | B135: Accepted | C135: NA | D135: Kiwi Power Ltd | E135: KIWIS-4 | F135: DNO connection | G135: DSF: Load response | H135: 2022-04-30 | I135: 2022-05-31 | J135: 30.04.22 - 31.05.22 (1 months) | K135: As per FFR framework agreement | L135: 2300 | M135: 700 | N135: 8 | O135: 2300 | P135: 700 | Q135: 8 | R135: 2300 | S135: 700 | T135: 8 | U135: 29.6 | AO135: 8 | AP135: N/A
A136: 148.146 | B136: Accepted | C136: NA | D136: Kiwi Power Ltd | E136: KIWIS-4 | F136: DNO connection | G136: DSF: Load response | H136: 2022-05-01 | I136: 2022-05-31 | J136: 01.05.22 - 31.05.22 (1 months) | K136: As per FFR framework agreement | L136: 700 | M136: 1500 | N136: 8 | O136: 700 | P136: 1500 | Q136: 8 | R136: 700 | S136: 1500 | T136: 8 | U136: 30 | AO136: 8 | AP136: N/A
A137: 148.147 | B137: Accepted | C137: NA | D137: Kiwi Power Ltd | E137: KIWIS-4 | F137: DNO connection | G137: DSF: Load response | H137: 2022-05-01 | I137: 2022-05-31 | J137: 01.05.22 - 31.05.22 (1 months) | K137: As per FFR framework agreement | L137: 1500 | M137: 2300 | N137: 8 | O137: 1500 | P137: 2300 | Q137: 8 | R137: 1500 | S137: 2300 | T137: 8 | U137: 30.4 | AO137: 8 | AP137: N/A
A138: 148.148 | B138: Accepted | C138: NA | D138: Kiwi Power Ltd | E138: KIWIE-5 | F138: DNO connection | G138: DSF: Storage (onsite) | H138: 2022-04-30 | I138: 2022-05-31 | J138: 30.04.22 - 31.05.22 (1 months) | K138: As per FFR framework agreement | L138: 2300 | M138: 700 | N138: 8 | O138: 2300 | P138: 700 | Q138: 8 | R138: 2300 | S138: 700 | T138: 8 | U138: 47 | AC138: 2 | AD138: 5 | AE138: 5 | AF138: 2 | AG138: 5 | AH138: 2 | AI138: 5 | AP138: TS13
A139: 148.149 | B139: Accepted | C139: NA | D139: Kiwi Power Ltd | E139: KIWIE-5 | F139: DNO connection | G139: DSF: Storage (onsite) | H139: 2022-05-01 | I139: 2022-05-31 | J139: 01.05.22 - 31.05.22 (1 months) | K139: As per FFR framework agreement | L139: 700 | M139: 1500 | N139: 8 | O139: 700 | P139: 1500 | Q139: 8 | R139: 700 | S139: 1500 | T139: 8 | U139: 57.1 | AC139: 2 | AD139: 5 | AE139: 5 | AF139: 2 | AG139: 5 | AH139: 2 | AI139: 5 | AP139: TS13
A140: 148.15 | B140: Accepted | C140: NA | D140: Kiwi Power Ltd | E140: KIWIE-5 | F140: DNO connection | G140: DSF: Storage (onsite) | H140: 2022-05-01 | I140: 2022-05-31 | J140: 01.05.22 - 31.05.22 (1 months) | K140: As per FFR framework agreement | L140: 1500 | M140: 2300 | N140: 8 | O140: 1500 | P140: 2300 | Q140: 8 | R140: 1500 | S140: 2300 | T140: 8 | U140: 109.55 | AC140: 2 | AD140: 5 | AE140: 5 | AF140: 2 | AG140: 5 | AH140: 2 | AI140: 5 | AP140: TS13
A141: 148.151 | B141: Rejected | C141: 2 | D141: Kiwi Power Ltd | E141: KIWIE-2 | F141: DNO connection | G141: DSF: Storage (onsite) | H141: 2022-04-30 | I141: 2022-05-31 | J141: 30.04.22 - 31.05.22 (1 months) | K141: As per FFR framework agreement | L141: 2300 | M141: 700 | N141: 8 | O141: 2300 | P141: 700 | Q141: 8 | R141: 2300 | S141: 700 | T141: 8 | U141: 43.52 | AC141: 1.6 | AD141: 4 | AE141: 4 | AF141: 1.6 | AG141: 4 | AH141: 1.6 | AI141: 4 | AP141: CF33
A142: =A141+0.001 -> 148.152 | B142: Accepted | C142: NA | D142: Kiwi Power Ltd | E142: KIWIE-2 | F142: DNO connection | G142: DSF: Storage (onsite) | H142: 2022-05-01 | I142: 2022-05-31 | J142: 01.05.22 - 31.05.22 (1 months) | K142: As per FFR framework agreement | L142: 700 | M142: 1500 | N142: 8 | O142: 700 | P142: 1500 | Q142: 8 | R142: 700 | S142: 1500 | T142: 8 | U142: 45.92 | AC142: 1.6 | AD142: 4 | AE142: 4 | AF142: 1.6 | AG142: 4 | AH142: 1.6 | AI142: 4 | AP142: CF33
A143: 148.153 | B143: Accepted | C143: NA | D143: Kiwi Power Ltd | E143: KIWIE-2 | F143: DNO connection | G143: DSF: Storage (onsite) | H143: 2022-05-01 | I143: 2022-05-31 | J143: 01.05.22 - 31.05.22 (1 months) | K143: As per FFR framework agreement | L143: 1500 | M143: 2300 | N143: 8 | O143: 1500 | P143: 2300 | Q143: 8 | R143: 1500 | S143: 2300 | T143: 8 | U143: 87.68 | AC143: 1.6 | AD143: 4 | AE143: 4 | AF143: 1.6 | AG143: 4 | AH143: 1.6 | AI143: 4 | AP143: CF33
A144: 148.154 | B144: Accepted | C144: NA | D144: Kiwi Power Ltd | E144: KIWIDA-1 | F144: DNO connection | G144: DSF: Storage (onsite) | H144: 2022-04-30 | I144: 2022-05-31 | J144: 30.04.22 - 31.05.22 (1 months) | K144: As per FFR framework agreement | L144: 2300 | M144: 2300 | N144: 24 | O144: 2300 | P144: 2300 | Q144: 24 | R144: 2300 | S144: 2300 | T144: 24 | U144: 35 | AC144: 0.8 | AD144: 2 | AE144: 2 | AF144: 0.8 | AG144: 2 | AH144: 0.8 | AI144: 2 | AP144: PL6 7
A145: 148.155 | B145: Rejected | C145: 4 | D145: Limejump Ltd | E145: LJDYN-2 | F145: DNO connection | G145: DSF: Storage (for export) | H145: 2022-04-30 | I145: 2022-05-31 | J145: 30.04.22 - 31.05.22 (1 months) | K145: As per FFR framework agreement | L145: 2300 | M145: 2300 | N145: 24 | O145: 2300 | P145: 2300 | Q145: 24 | R145: 2300 | S145: 2300 | T145: 24 | U145: 130.05 | AC145: 3.2 | AD145: 8 | AE145: 8 | AF145: 3.2 | AG145: 8 | AH145: 3.2 | AI145: 8 | AL145: A | AM145: Mutually Exclusive to B and C | AP145: YO12 | AQ145: H for 30 minutes only
A146: 148.156 | B146: Accepted | C146: NA | D146: Limejump Ltd | E146: LJDYN-2 | F146: DNO connection | G146: DSF: Storage (for export) | H146: 2022-04-30 | I146: 2022-05-31 | J146: 30.04.22 - 31.05.22 (1 months) | K146: As per FFR framework agreement | L146: 2300 | M146: 1500 | N146: 16 | O146: 2300 | P146: 1500 | Q146: 16 | R146: 2300 | S146: 1500 | T146: 16 | U146: 81.45 | AC146: 3.2 | AD146: 8 | AE146: 8 | AF146: 3.2 | AG146: 8 | AH146: 3.2 | AI146: 8 | AL146: B | AM146: Mutually Exclusive to A | AP146: YO12 | AQ146: H for 30 minutes only
A147: 148.157 | B147: Accepted | C147: NA | D147: Limejump Ltd | E147: LJDYN-2 | F147: DNO connection | G147: DSF: Storage (for export) | H147: 2022-05-01 | I147: 2022-05-31 | J147: 01.05.22 - 31.05.22 (1 months) | K147: As per FFR framework agreement | L147: 1500 | M147: 2300 | N147: 8 | O147: 1500 | P147: 2300 | Q147: 8 | R147: 1500 | S147: 2300 | T147: 8 | U147: 224.1 | AC147: 3.2 | AD147: 8 | AE147: 8 | AF147: 3.2 | AG147: 8 | AH147: 3.2 | AI147: 8 | AL147: C | AM147: Mutually Exclusive to A | AP147: YO12 | AQ147: H for 30 minutes only
A148: 148.158 | B148: Accepted | C148: NA | D148: Open Energi Limited | E148: OPEN-1 | F148: DNO connection | G148: DSF: Load response | H148: 2022-04-30 | I148: 2022-05-31 | J148: 30.04.22 - 31.05.22 (1 months) | K148: As per FFR framework agreement | L148: 2300 | M148: 700 | N148: =IF(L148>M148, (2400-L148+M148)/100, IF(AND(L148="",M148="",L148=M148), "", IF(L148=M148,24,(M148-L148)/100))) -> 8 | O148: 2300 | P148: 700 | Q148: =IF(O148>P148, (2400-O148+P148)/100, IF(AND(O148="",P148="",O148=P148), "", IF(O148=P148,24,(P148-O148)/100))) -> 8 | R148: 2300 | S148: 700 | T148: =IF(R148>S148, (2400-R148+S148)/100, IF(AND(R148="",S148="",R148=S148), "", IF(R148=S148,24,(S148-R148)/100))) -> 8 | U148: 15.9 | AC148: 0.8 | AD148: 2 | AE148: 2 | AF148: 0.8 | AG148: 2 | AH148: 0.8 | AI148: 2 | AL148: A | AP148: Aggregated
A149: 148.159 | B149: Accepted | C149: NA | D149: Open Energi Limited | E149: OPEN-1 | F149: DNO connection | G149: DSF: Load response | H149: 2022-05-01 | I149: 2022-05-31 | J149: 01.05.22 - 31.05.22 (1 months) | K149: As per FFR framework agreement | L149: 700 | M149: 1500 | N149: =IF(L149>M149, (2400-L149+M149)/100, IF(AND(L149="",M149="",L149=M149), "", IF(L149=M149,24,(M149-L149)/100))) -> 8 | O149: 700 | P149: 1500 | Q149: =IF(O149>P149, (2400-O149+P149)/100, IF(AND(O149="",P149="",O149=P149), "", IF(O149=P149,24,(P149-O149)/100))) -> 8 | R149: 700 | S149: 1500 | T149: =IF(R149>S149, (2400-R149+S149)/100, IF(AND(R149="",S149="",R149=S149), "", IF(R149=S149,24,(S149-R149)/100))) -> 8 | U149: 15.9 | AC149: 0.8 | AD149: 2 | AE149: 2 | AF149: 0.8 | AG149: 2 | AH149: 0.8 | AI149: 2 | AL149: B | AP149: Aggregated
A150: 148.16 | B150: Accepted | C150: NA | D150: Open Energi Limited | E150: OPEN-1 | F150: DNO connection | G150: DSF: Load response | H150: 2022-05-01 | I150: 2022-05-31 | J150: 01.05.22 - 31.05.22 (1 months) | K150: As per FFR framework agreement | L150: 1500 | M150: 2300 | N150: 8 | O150: 1500 | P150: 2300 | Q150: 8 | R150: 1500 | S150: 2300 | T150: 8 | U150: 22.9 | AC150: 0.8 | AD150: 2 | AE150: 2 | AF150: 0.8 | AG150: 2 | AH150: 0.8 | AI150: 2 | AL150: C | AP150: Aggregated
A151: 148.161 | B151: Rejected | C151: 2 | D151: Erova Energy | E151: V__BEROV001 | F151: DNO connection | G151: Battery | H151: 2022-04-30 | I151: 2022-05-31 | J151: 30.04.22 - 31.05.22 (1 months) | K151: As per FFR framework agreement | L151: 2300 | M151: 2300 | N151: 24 | O151: 2300 | P151: 2300 | Q151: 24 | R151: 2300 | S151: 2300 | T151: 24 | U151: 179.1 | AC151: 3.6 | AD151: 9 | AE151: 9 | AF151: 3.6 | AG151: 9 | AH151: 2.8 | AI151: 7 | AL151: D | AP151: LE65
A152: 148.162 | B152: Accepted | C152: NA | D152: OSSPV001 Limited | E152: OEL1-FFR | F152: DNO connection | G152: Battery | H152: 2022-04-30 | I152: 2022-05-31 | J152: 30.04.22 - 31.05.22 (1 months) | K152: As per FFR framework agreement | L152: 2300 | M152: 700 | N152: 8 | O152: 2300 | P152: 700 | Q152: 8 | R152: 2300 | S152: 700 | T152: 8 | U152: 82.44 | AC152: 3.6 | AD152: 9 | AE152: 9 | AF152: 3.6 | AG152: 9 | AH152: 3.6 | AI152: 9
A153: 148.163 | B153: Accepted | C153: NA | D153: OSSPV001 Limited | E153: OEL1-FFR | F153: DNO connection | G153: Battery | H153: 2022-05-01 | I153: 2022-05-31 | J153: 01.05.22 - 31.05.22 (1 months) | K153: As per FFR framework agreement | L153: 700 | M153: 1500 | N153: 8 | O153: 700 | P153: 1500 | Q153: 8 | R153: 700 | S153: 1500 | T153: 8 | U153: 100.53 | AC153: 3.6 | AD153: 9 | AE153: 9 | AF153: 3.6 | AG153: 9 | AH153: 3.6 | AI153: 9
A154: 148.164 | B154: Accepted | C154: NA | D154: OSSPV001 Limited | E154: OEL1-FFR | F154: DNO connection | G154: Battery | H154: 2022-05-01 | I154: 2022-05-31 | J154: 01.05.22 - 31.05.22 (1 months) | K154: As per FFR framework agreement | L154: 1500 | M154: 2300 | N154: 8 | O154: 1500 | P154: 2300 | Q154: 8 | R154: 1500 | S154: 2300 | T154: 8 | U154: 216 | AC154: 3.6 | AD154: 9 | AE154: 9 | AF154: 3.6 | AG154: 9 | AH154: 3.6 | AI154: 9
A155: 148.165 | B155: Accepted | C155: NA | D155: Peak Gen | E155: PGFFR-4 | F155: DNO connection | G155: DSF: Distributed generation (for export) | H155: 2022-04-30 | I155: 2022-05-31 | J155: 30.04.22 - 31.05.22 (1 months) | K155: As per FFR framework agreement | L155: 2300 | M155: 700 | N155: 8 | O155: 2300 | P155: 700 | Q155: 8 | R155: 2300 | S155: 700 | T155: 8 | U155: 71.678 | AO155: 18 | AP155: SA10
A156: 148.166 | B156: Accepted | C156: NA | D156: Peak Gen | E156: PGFFR-4 | F156: DNO connection | G156: DSF: Distributed generation (for export) | H156: 2022-05-01 | I156: 2022-05-31 | J156: 01.05.22 - 31.05.22 (1 months) | K156: As per FFR framework agreement | L156: 1100 | M156: 2300 | N156: 12 | O156: 1100 | P156: 2300 | Q156: 12 | R156: 1100 | S156: 2300 | T156: 12 | U156: 71.455 | AO156: 18 | AP156: SA10
A157: 148.167 | B157: Accepted | C157: NA | D157: Peak Gen | E157: PGFFR-5 | F157: DNO connection | G157: DSF: Distributed generation (for export) | H157: 2022-04-30 | I157: 2022-05-31 | J157: 30.04.22 - 31.05.22 (1 months) | K157: As per FFR framework agreement | L157: 2300 | M157: 700 | N157: 8 | O157: 2300 | P157: 700 | Q157: 8 | R157: 2300 | S157: 700 | T157: 8 | U157: 71.825 | AO157: 18 | AP157: CF64
A158: 148.168 | B158: Accepted | C158: NA | D158: Peak Gen | E158: PGFFR-5 | F158: DNO connection | G158: DSF: Distributed generation (for export) | H158: 2022-05-01 | I158: 2022-05-31 | J158: 01.05.22 - 31.05.22 (1 months) | K158: As per FFR framework agreement | L158: 1100 | M158: 2300 | N158: 12 | O158: 1100 | P158: 2300 | Q158: 12 | R158: 1100 | S158: 2300 | T158: 12 | U158: 71.576 | AO158: 18 | AP158: CF64
A159: 148.169 | B159: Accepted | C159: NA | D159: Peak Gen | E159: PGFFR-6 | F159: DNO connection | G159: DSF: Distributed generation (for export) | H159: 2022-04-30 | I159: 2022-05-31 | J159: 30.04.22 - 31.05.22 (1 months) | K159: As per FFR framework agreement | L159: 2300 | M159: 700 | N159: 8 | O159: 2300 | P159: 700 | Q159: 8 | R159: 2300 | S159: 700 | T159: 8 | U159: 71.7982 | AO159: 18 | AP159: PO15 5UB
A160: 148.17 | B160: Accepted | C160: NA | D160: Peak Gen | E160: PGFFR-6 | F160: DNO connection | G160: DSF: Distributed generation (for export) | H160: 2022-05-01 | I160: 2022-05-31 | J160: 01.05.22 - 31.05.22 (1 months) | K160: As per FFR framework agreement | L160: 1100 | M160: 2300 | N160: 12 | O160: 1100 | P160: 2300 | Q160: 12 | R160: 1100 | S160: 2300 | T160: 12 | U160: 71.754 | AO160: 18 | AP160: PO15 5UB
A161: 148.171 | B161: Accepted | C161: NA | D161: Peak Gen | E161: PGFFR-7 | F161: DNO connection | G161: DSF: Distributed generation (for export) | H161: 2022-04-30 | I161: 2022-05-31 | J161: 30.04.22 - 31.05.22 (1 months) | K161: As per FFR framework agreement | L161: 2300 | M161: 1500 | N161: =IF(L161>M161, (2400-L161+M161)/100, IF(AND(L161="",M161="",L161=M161), "", IF(L161=M161,24,(M161-L161)/100))) -> 16 | O161: 2300 | P161: 1500 | Q161: =IF(O161>P161, (2400-O161+P161)/100, IF(AND(O161="",P161="",O161=P161), "", IF(O161=P161,24,(P161-O161)/100))) -> 16 | R161: 2300 | S161: 1500 | T161: =IF(R161>S161, (2400-R161+S161)/100, IF(AND(R161="",S161="",R161=S161), "", IF(R161=S161,24,(S161-R161)/100))) -> 16 | U161: 71.8291 | AO161: 18 | AP161: EX2 8
A162: 148.172 | B162: Accepted | C162: NA | D162: Peak Gen | E162: PGFFR-8 | F162: DNO connection | G162: DSF: Distributed generation (for export) | H162: 2022-04-30 | I162: 2022-05-31 | J162: 30.04.22 - 31.05.22 (1 months) | K162: As per FFR framework agreement | L162: 2300 | M162: 1500 | N162: =IF(L162>M162, (2400-L162+M162)/100, IF(AND(L162="",M162="",L162=M162), "", IF(L162=M162,24,(M162-L162)/100))) -> 16 | O162: 2300 | P162: 1500 | Q162: =IF(O162>P162, (2400-O162+P162)/100, IF(AND(O162="",P162="",O162=P162), "", IF(O162=P162,24,(P162-O162)/100))) -> 16 | R162: 2300 | S162: 1500 | T162: =IF(R162>S162, (2400-R162+S162)/100, IF(AND(R162="",S162="",R162=S162), "", IF(R162=S162,24,(S162-R162)/100))) -> 16 | U162: 63.245 | AO162: 16 | AP162: RG42 5NG
A163: 148.173 | B163: Accepted | C163: NA | D163: Peak Gen | E163: PGFFR-9 | F163: DNO connection | G163: DSF: Distributed generation (for export) | H163: 2022-04-30 | I163: 2022-05-31 | J163: 30.04.22 - 31.05.22 (1 months) | K163: As per FFR framework agreement | L163: 2300 | M163: 1500 | N163: =IF(L163>M163, (2400-L163+M163)/100, IF(AND(L163="",M163="",L163=M163), "", IF(L163=M163,24,(M163-L163)/100))) -> 16 | O163: 2300 | P163: 1500 | Q163: =IF(O163>P163, (2400-O163+P163)/100, IF(AND(O163="",P163="",O163=P163), "", IF(O163=P163,24,(P163-O163)/100))) -> 16 | R163: 2300 | S163: 1500 | T163: =IF(R163>S163, (2400-R163+S163)/100, IF(AND(R163="",S163="",R163=S163), "", IF(R163=S163,24,(S163-R163)/100))) -> 16 | U163: 71.576 | AO163: 18 | AP163: PO9 1
A164: 148.174 | B164: Accepted | C164: NA | D164: Social Energy Limited | E164: SOC1-FFR | F164: DNO connection | G164: DSF: Storage (onsite) | H164: 2022-04-30 | I164: 2022-05-31 | J164: 30.04.22 - 31.05.22 (1 months) | K164: As per FFR framework agreement | L164: 2300 | M164: 1100 | N164: =IF(L164>M164, (2400-L164+M164)/100, IF(AND(L164="",M164="",L164=M164), "", IF(L164=M164,24,(M164-L164)/100))) -> 12 | O164: 2300 | P164: 1100 | Q164: =IF(O164>P164, (2400-O164+P164)/100, IF(AND(O164="",P164="",O164=P164), "", IF(O164=P164,24,(P164-O164)/100))) -> 12 | R164: 2300 | S164: 1100 | T164: =IF(R164>S164, (2400-R164+S164)/100, IF(AND(R164="",S164="",R164=S164), "", IF(R164=S164,24,(S164-R164)/100))) -> 12 | U164: 14.02 | AC164: 0.4 | AD164: 1 | AE164: 1 | AF164: 0.4 | AG164: 1 | AH164: 0.4 | AI164: 1 | AL164: A | AQ164: H for only 30min
A165: 148.175 | B165: Accepted | C165: NA | D165: Social Energy Limited | E165: SOC1-FFR | F165: DNO connection | G165: DSF: Storage (onsite) | H165: 2022-05-01 | I165: 2022-05-31 | J165: 01.05.22 - 31.05.22 (1 months) | K165: As per FFR framework agreement | L165: 1900 | M165: 2300 | N165: 4 | O165: 1900 | P165: 2300 | Q165: 4 | R165: 1900 | S165: 2300 | T165: 4 | U165: 14.02 | AC165: 0.4 | AD165: 1 | AE165: 1 | AF165: 0.4 | AG165: 1 | AH165: 0.4 | AI165: 1 | AL165: A | AQ165: H for only 30min
A166: 148.176 | B166: Rejected | C166: 4 | D166: Social Energy Limited | E166: SOC1-FFR | F166: DNO connection | G166: DSF: Storage (onsite) | H166: 2022-05-01 | I166: 2022-05-31 | J166: 01.05.22 - 31.05.22 (1 months) | K166: As per FFR framework agreement | L166: 1500 | M166: 2300 | N166: 8 | O166: 1500 | P166: 2300 | Q166: 8 | R166: 1500 | S166: 2300 | T166: 8 | U166: 22.01 | AC166: 0.4 | AD166: 1 | AE166: 1 | AF166: 0.4 | AG166: 1 | AH166: 0.4 | AI166: 1 | AM166: mutually exclusive to A | AQ166: H for only 30min
A167: 148.177 | B167: Accepted | C167: NA | D167: Social Energy Limited | E167: SOC2-FFR | F167: DNO connection | G167: DSF: Storage (onsite) | H167: 2022-04-30 | I167: 2022-05-31 | J167: 30.04.22 - 31.05.22 (1 months) | K167: As per FFR framework agreement | L167: 2300 | M167: 1100 | N167: 12 | O167: 2300 | P167: 1100 | Q167: 12 | R167: 2300 | S167: 1100 | T167: 12 | U167: 14.17 | AC167: 0.4 | AD167: 1 | AE167: 1 | AF167: 0.4 | AG167: 1 | AH167: 0.4 | AI167: 1 | AL167: B | AQ167: H for only 30min
A168: 148.178 | B168: Accepted | C168: NA | D168: Social Energy Limited | E168: SOC2-FFR | F168: DNO connection | G168: DSF: Storage (onsite) | H168: 2022-05-01 | I168: 2022-05-31 | J168: 01.05.22 - 31.05.22 (1 months) | K168: As per FFR framework agreement | L168: 1900 | M168: 2300 | N168: 4 | O168: 1900 | P168: 2300 | Q168: 4 | R168: 1900 | S168: 2300 | T168: 4 | U168: 14.17 | AC168: 0.4 | AD168: 1 | AE168: 1 | AF168: 0.4 | AG168: 1 | AH168: 0.4 | AI168: 1 | AL168: B | AQ168: H for only 30min
A169: 148.179 | B169: Rejected | C169: 4 | D169: Social Energy Limited | E169: SOC2-FFR | F169: DNO connection | G169: DSF: Storage (onsite) | H169: 2022-05-01 | I169: 2022-05-31 | J169: 01.05.22 - 31.05.22 (1 months) | K169: As per FFR framework agreement | L169: 1500 | M169: 2300 | N169: 8 | O169: 1500 | P169: 2300 | Q169: 8 | R169: 1500 | S169: 2300 | T169: 8 | U169: 22.23 | AC169: 0.4 | AD169: 1 | AE169: 1 | AF169: 0.4 | AG169: 1 | AH169: 0.4 | AI169: 1 | AM169: mutually exclusive to B | AQ169: H for only 30min
A170: 148.18 | B170: Accepted | C170: NA | D170: Social Energy Limited | E170: SOC4-FFR | F170: DNO connection | G170: DSF: Storage (onsite) | H170: 2022-04-30 | I170: 2022-05-31 | J170: 30.04.22 - 31.05.22 (1 months) | K170: As per FFR framework agreement | L170: 2300 | M170: 1100 | N170: 12 | O170: 2300 | P170: 1100 | Q170: 12 | R170: 2300 | S170: 1100 | T170: 12 | U170: 14.49 | AC170: 0.4 | AD170: 1 | AE170: 1 | AF170: 0.4 | AG170: 1 | AH170: 0.4 | AI170: 1 | AL170: D | AQ170: H for only 30min
A171: 148.181 | B171: Accepted | C171: NA | D171: Social Energy Limited | E171: SOC4-FFR | F171: DNO connection | G171: DSF: Storage (onsite) | H171: 2022-05-01 | I171: 2022-05-31 | J171: 01.05.22 - 31.05.22 (1 months) | K171: As per FFR framework agreement | L171: 1900 | M171: 2300 | N171: 4 | O171: 1900 | P171: 2300 | Q171: 4 | R171: 1900 | S171: 2300 | T171: 4 | U171: 14.49 | AC171: 0.4 | AD171: 1 | AE171: 1 | AF171: 0.4 | AG171: 1 | AH171: 0.4 | AI171: 1 | AL171: D | AQ171: H for only 30min
A172: 148.182 | B172: Rejected | C172: 4 | D172: Social Energy Limited | E172: SOC4-FFR | F172: DNO connection | G172: DSF: Storage (onsite) | H172: 2022-05-01 | I172: 2022-05-31 | J172: 01.05.22 - 31.05.22 (1 months) | K172: As per FFR framework agreement | L172: 1500 | M172: 2300 | N172: 8 | O172: 1500 | P172: 2300 | Q172: 8 | R172: 1500 | S172: 2300 | T172: 8 | U172: 22.65 | AC172: 0.4 | AD172: 1 | AE172: 1 | AF172: 0.4 | AG172: 1 | AH172: 0.4 | AI172: 1 | AM172: mutually exclusive to D | AQ172: H for only 30min
A173: 148.183 | B173: Accepted | C173: NA | D173: Social Energy Limited | E173: SOC5-FFR | F173: DNO connection | G173: DSF: Storage (onsite) | H173: 2022-04-30 | I173: 2022-05-31 | J173: 30.04.22 - 31.05.22 (1 months) | K173: As per FFR framework agreement | L173: 2300 | M173: 1100 | N173: 12 | O173: 2300 | P173: 1100 | Q173: 12 | R173: 2300 | S173: 1100 | T173: 12 | U173: 14.68 | AC173: 0.4 | AD173: 1 | AE173: 1 | AF173: 0.4 | AG173: 1 | AH173: 0.4 | AI173: 1 | AL173: E | AQ173: H for only 30min
A174: 148.184 | B174: Accepted | C174: NA | D174: Social Energy Limited | E174: SOC5-FFR | F174: DNO connection | G174: DSF: Storage (onsite) | H174: 2022-05-01 | I174: 2022-05-31 | J174: 01.05.22 - 31.05.22 (1 months) | K174: As per FFR framework agreement | L174: 1900 | M174: 2300 | N174: 4 | O174: 1900 | P174: 2300 | Q174: 4 | R174: 1900 | S174: 2300 | T174: 4 | U174: 14.68 | AC174: 0.4 | AD174: 1 | AE174: 1 | AF174: 0.4 | AG174: 1 | AH174: 0.4 | AI174: 1 | AL174: E | AQ174: H for only 30min
A175: 148.185 | B175: Rejected | C175: 4 | D175: Social Energy Limited | E175: SOC5-FFR | F175: DNO connection | G175: DSF: Storage (onsite) | H175: 2022-05-01 | I175: 2022-05-31 | J175: 01.05.22 - 31.05.22 (1 months) | K175: As per FFR framework agreement | L175: 1500 | M175: 2300 | N175: 8 | O175: 1500 | P175: 2300 | Q175: 8 | R175: 1500 | S175: 2300 | T175: 8 | U175: 22.88 | AC175: 0.4 | AD175: 1 | AE175: 1 | AF175: 0.4 | AG175: 1 | AH175: 0.4 | AI175: 1 | AM175: mutually exclusive to E | AQ175: H for only 30min
A176: 148.186 | B176: Accepted | C176: NA | D176: Social Energy Limited | E176: SOC6-FFR | F176: DNO connection | G176: DSF: Storage (onsite) | H176: 2022-04-30 | I176: 2022-05-31 | J176: 30.04.22 - 31.05.22 (1 months) | K176: As per FFR framework agreement | L176: 2300 | M176: 1100 | N176: 12 | O176: 2300 | P176: 1100 | Q176: 12 | R176: 2300 | S176: 1100 | T176: 12 | U176: 14.85 | AC176: 0.4 | AD176: 1 | AE176: 1 | AF176: 0.4 | AG176: 1 | AH176: 0.4 | AI176: 1 | AL176: F | AQ176: H for only 30min
A177: 148.187 | B177: Accepted | C177: NA | D177: Social Energy Limited | E177: SOC6-FFR | F177: DNO connection | G177: DSF: Storage (onsite) | H177: 2022-05-01 | I177: 2022-05-31 | J177: =IFERROR(TEXT(H177,"DD.MM.YY")&" - "&TEXT(I177,"DD.MM.YY")&" ("&DATEDIF(H177,I177+1,"m")&" months)","Tender End Date is Before Start Date") -> 01.05.22 - 31.05.22 (1 months) | K177: As per FFR framework agreement | L177: 1900 | M177: 2300 | N177: 4 | O177: 1900 | P177: 2300 | Q177: 4 | R177: 1900 | S177: 2300 | T177: 4 | U177: 14.85 | AC177: 0.4 | AD177: 1 | AE177: 1 | AF177: 0.4 | AG177: 1 | AH177: 0.4 | AI177: 1 | AL177: F | AQ177: H for only 30min
A178: 148.188 | B178: Rejected | C178: 4 | D178: Social Energy Limited | E178: SOC6-FFR | F178: DNO connection | G178: DSF: Storage (onsite) | H178: 2022-05-01 | I178: 2022-05-31 | J178: 01.05.22 - 31.05.22 (1 months) | K178: As per FFR framework agreement | L178: 1500 | M178: 2300 | N178: 8 | O178: 1500 | P178: 2300 | Q178: 8 | R178: 1500 | S178: 2300 | T178: 8 | U178: 23.09 | AC178: 0.4 | AD178: 1 | AE178: 1 | AF178: 0.4 | AG178: 1 | AH178: 0.4 | AI178: 1 | AM178: mutually exclusive to F | AQ178: H for only 30min
A179: 148.189 | B179: Accepted | C179: NA | D179: Social Energy Limited | E179: SOC7-FFR | F179: DNO connection | G179: DSF: Storage (onsite) | H179: 2022-04-30 | I179: 2022-05-31 | J179: 30.04.22 - 31.05.22 (1 months) | K179: As per FFR framework agreement | L179: 2300 | M179: 1100 | N179: 12 | O179: 2300 | P179: 1100 | Q179: 12 | R179: 2300 | S179: 1100 | T179: 12 | U179: 15.01 | AC179: 0.4 | AD179: 1 | AE179: 1 | AF179: 0.4 | AG179: 1 | AH179: 0.4 | AI179: 1 | AL179: G | AQ179: H for only 30min
A180: 148.19 | B180: Accepted | C180: NA | D180: Social Energy Limited | E180: SOC7-FFR | F180: DNO connection | G180: DSF: Storage (onsite) | H180: 2022-05-01 | I180: 2022-05-31 | J180: 01.05.22 - 31.05.22 (1 months) | K180: As per FFR framework agreement | L180: 1900 | M180: 2300 | N180: 4 | O180: 1900 | P180: 2300 | Q180: 4 | R180: 1900 | S180: 2300 | T180: 4 | U180: 15.01 | AC180: 0.4 | AD180: 1 | AE180: 1 | AF180: 0.4 | AG180: 1 | AH180: 0.4 | AI180: 1 | AL180: G | AQ180: H for only 30min
A181: 148.191 | B181: Rejected | C181: 4 | D181: Social Energy Limited | E181: SOC7-FFR | F181: DNO connection | G181: DSF: Storage (onsite) | H181: 2022-05-01 | I181: 2022-05-31 | J181: 01.05.22 - 31.05.22 (1 months) | K181: As per FFR framework agreement | L181: 1500 | M181: 2300 | N181: 8 | O181: 1500 | P181: 2300 | Q181: 8 | R181: 1500 | S181: 2300 | T181: 8 | U181: 23.32 | AC181: 0.4 | AD181: 1 | AE181: 1 | AF181: 0.4 | AG181: 1 | AH181: 0.4 | AI181: 1 | AM181: mutually exclusive to G | AQ181: H for only 30min
A182: 148.192 | B182: Accepted | C182: NA | D182: Social Energy Limited | E182: SOC9-FFR | F182: DNO connection | G182: DSF: Storage (onsite) | H182: 2022-04-30 | I182: 2022-05-31 | J182: 30.04.22 - 31.05.22 (1 months) | K182: As per FFR framework agreement | L182: 2300 | M182: 1100 | N182: =IF(L182>M182, (2400-L182+M182)/100, IF(AND(L182="",M182="",L182=M182), "", IF(L182=M182,24,(M182-L182)/100))) -> 12 | O182: 2300 | P182: 1100 | Q182: 12 | R182: 2300 | S182: 1100 | T182: 12 | U182: 15.34 | AC182: 0.4 | AD182: 1 | AE182: 1 | AF182: 0.4 | AG182: 1 | AH182: 0.4 | AI182: 1 | AL182: I | AQ182: H for only 30min
A183: 148.193 | B183: Accepted | C183: NA | D183: Social Energy Limited | E183: SOC9-FFR | F183: DNO connection | G183: DSF: Storage (onsite) | H183: 2022-05-01 | I183: 2022-05-31 | J183: 01.05.22 - 31.05.22 (1 months) | K183: As per FFR framework agreement | L183: 1900 | M183: 2300 | N183: 4 | O183: 1900 | P183: 2300 | Q183: 4 | R183: 1900 | S183: 2300 | T183: 4 | U183: 15.34 | AC183: 0.4 | AD183: 1 | AE183: 1 | AF183: 0.4 | AG183: 1 | AH183: 0.4 | AI183: 1 | AL183: I | AQ183: H for only 30min
A184: =A183+0.001 -> 148.194 | B184: Rejected | C184: 4 | D184: Social Energy Limited | E184: SOC9-FFR | F184: DNO connection | G184: DSF: Storage (onsite) | H184: 2022-05-01 | I184: 2022-05-31 | J184: 01.05.22 - 31.05.22 (1 months) | K184: As per FFR framework agreement | L184: 1500 | M184: 2300 | N184: 8 | O184: 1500 | P184: 2300 | Q184: 8 | R184: 1500 | S184: 2300 | T184: 8 | U184: 23.76 | AC184: 0.4 | AD184: 1 | AE184: 1 | AF184: 0.4 | AG184: 1 | AH184: 0.4 | AI184: 1 | AM184: mutually exclusive to I | AQ184: H for only 30min
A185: 148.195 | B185: Accepted | C185: NA | D185: Social Energy Limited | E185: SOC10-FFR | F185: DNO connection | G185: DSF: Storage (onsite) | H185: 2022-04-30 | I185: 2022-05-31 | J185: 30.04.22 - 31.05.22 (1 months) | K185: As per FFR framework agreement | L185: 2300 | M185: 1100 | N185: 12 | O185: 2300 | P185: 1100 | Q185: 12 | R185: 2300 | S185: 1100 | T185: 12 | U185: 15.49 | AC185: 0.4 | AD185: 1 | AE185: 1 | AF185: 0.4 | AG185: 1 | AH185: 0.4 | AI185: 1 | AL185: J | AQ185: H for only 30min
A186: 148.196 | B186: Accepted | C186: NA | D186: Social Energy Limited | E186: SOC10-FFR | F186: DNO connection | G186: DSF: Storage (onsite) | H186: 2022-05-01 | I186: 2022-05-31 | J186: 01.05.22 - 31.05.22 (1 months) | K186: As per FFR framework agreement | L186: 1900 | M186: 2300 | N186: 4 | O186: 1900 | P186: 2300 | Q186: 4 | R186: 1900 | S186: 2300 | T186: 4 | U186: 15.49 | AC186: 0.4 | AD186: 1 | AE186: 1 | AF186: 0.4 | AG186: 1 | AH186: 0.4 | AI186: 1 | AL186: J | AQ186: H for only 30min
A187: 148.197 | B187: Rejected | C187: 4 | D187: Social Energy Limited | E187: SOC10-FFR | F187: DNO connection | G187: DSF: Storage (onsite) | H187: 2022-05-01 | I187: 2022-05-31 | J187: 01.05.22 - 31.05.22 (1 months) | K187: As per FFR framework agreement | L187: 1500 | M187: 2300 | N187: 8 | O187: 1500 | P187: 2300 | Q187: 8 | R187: 1500 | S187: 2300 | T187: 8 | U187: 24.01 | AC187: 0.4 | AD187: 1 | AE187: 1 | AF187: 0.4 | AG187: 1 | AH187: 0.4 | AI187: 1 | AM187: mutually exclusive to J | AQ187: H for only 30min
A188: 148.198 | B188: Accepted | C188: NA | D188: Statkraft Markets GmbH | E188: SKFT-1 | F188: DNO Connection | G188: DSF: Storage (for export) | H188: 2022-04-30 | I188: 2022-05-31 | J188: 30.04.22 - 31.05.22 (1 months) | K188: As per FFR framework agreement | L188: 2300 | M188: 700 | N188: 8 | O188: 2300 | P188: 700 | Q188: 8 | R188: 2300 | S188: 700 | T188: 8 | U188: 81 | AC188: 3.6 | AD188: 9 | AE188: 9 | AF188: 3.6 | AG188: 9 | AH188: 3.6 | AI188: 9 | AP188: YO61
A189: 148.199 | B189: Accepted | C189: NA | D189: Statkraft Markets GmbH | E189: SKFT-1 | F189: DNO Connection | G189: DSF: Storage (for export) | H189: 2022-05-01 | I189: 2022-05-31 | J189: 01.05.22 - 31.05.22 (1 months) | K189: As per FFR framework agreement | L189: 1500 | M189: 2300 | N189: 8 | O189: 1500 | P189: 2300 | Q189: 8 | R189: 1500 | S189: 2300 | T189: 8 | U189: 198 | AC189: 3.6 | AD189: 9 | AE189: 9 | AF189: 3.6 | AG189: 9 | AH189: 3.6 | AI189: 9 | AP189: YO61
A190: 148.2 | B190: Accepted | C190: NA | D190: Statkraft Markets GmbH | E190: AG-JSTK02 | F190: DNO Connection | G190: DSF: Storage (for export) | H190: 2022-04-30 | I190: 2022-05-31 | J190: 30.04.22 - 31.05.22 (1 months) | K190: As per FFR framework agreement | L190: 2300 | M190: 700 | N190: 8 | O190: 2300 | P190: 700 | Q190: 8 | R190: 2300 | S190: 700 | T190: 8 | U190: 46 | AC190: 2 | AD190: 5 | AE190: 5 | AF190: 2 | AG190: 5 | AH190: 2 | AI190: 5 | AP190: RH4 3
A191: 148.201 | B191: Rejected | C191: 2 | D191: Statkraft Markets GmbH | E191: AG-JSTK02 | F191: DNO Connection | G191: DSF: Storage (for export) | H191: 2022-05-01 | I191: 2022-05-31 | J191: 01.05.22 - 31.05.22 (1 months) | K191: As per FFR framework agreement | L191: 700 | M191: 1500 | N191: 8 | O191: 700 | P191: 1500 | Q191: 8 | R191: 700 | S191: 1500 | T191: 8 | U191: 78.95 | AC191: 2 | AD191: 5 | AE191: 5 | AF191: 2 | AG191: 5 | AH191: 2 | AI191: 5 | AP191: RH4 3
A192: 148.202 | B192: Accepted | C192: NA | D192: Statkraft Markets GmbH | E192: AG-JSTK02 | F192: DNO Connection | G192: DSF: Storage (for export) | H192: 2022-05-01 | I192: 2022-05-31 | J192: 01.05.22 - 31.05.22 (1 months) | K192: As per FFR framework agreement | L192: 1500 | M192: 2300 | N192: 8 | O192: 1500 | P192: 2300 | Q192: 8 | R192: 1500 | S192: 2300 | T192: 8 | U192: 141 | AC192: 2 | AD192: 5 | AE192: 5 | AF192: 2 | AG192: 5 | AH192: 2 | AI192: 5 | AP192: RH4 3
A193: 148.203 | B193: Accepted | C193: NA | D193: Statkraft Markets GmbH | E193: AG-MSTK01 | F193: DNO Connection | G193: DSF: Storage (for export) | H193: 2022-04-30 | I193: 2022-05-31 | J193: 30.04.22 - 31.05.22 (1 months) | K193: As per FFR framework agreement | L193: 2300 | M193: 700 | N193: 8 | O193: 2300 | P193: 700 | Q193: 8 | R193: 2300 | S193: 700 | T193: 8 | U193: 373.56 | AC193: 17.6 | AD193: 44 | AE193: 44 | AF193: 17.6 | AG193: 44 | AH193: 17.6 | AI193: 44 | AP193: HU16
A194: 148.204 | B194: Accepted | C194: NA | D194: Statkraft Markets GmbH | E194: AG-MSTK01 | F194: DNO Connection | G194: DSF: Storage (for export) | H194: 2022-05-01 | I194: 2022-05-31 | J194: 01.05.22 - 31.05.22 (1 months) | K194: As per FFR framework agreement | L194: 700 | M194: 1500 | N194: 8 | O194: 700 | P194: 1500 | Q194: 8 | R194: 700 | S194: 1500 | T194: 8 | U194: 391.6 | AC194: 17.6 | AD194: 44 | AE194: 44 | AF194: 17.6 | AG194: 44 | AH194: 17.6 | AI194: 44 | AP194: HU16
A195: 148.205 | B195: Accepted | C195: NA | D195: Statkraft Markets GmbH | E195: AG-MSTK01 | F195: DNO Connection | G195: DSF: Storage (for export) | H195: 2022-05-01 | I195: 2022-05-31 | J195: 01.05.22 - 31.05.22 (1 months) | K195: As per FFR framework agreement | L195: 1500 | M195: 2300 | N195: 8 | O195: 1500 | P195: 2300 | Q195: 8 | R195: 1500 | S195: 2300 | T195: 8 | U195: 1034 | AC195: 17.6 | AD195: 44 | AE195: 44 | AF195: 17.6 | AG195: 44 | AH195: 17.6 | AI195: 44 | AP195: HU16
A196: 148.206 | B196: Accepted | C196: NA | D196: Statkraft Markets GmbH | E196: AG-ASTK05 | F196: DNO Connection | G196: DSF: Storage (for export) | H196: 2022-04-30 | I196: 2022-05-31 | J196: 30.04.22 - 31.05.22 (1 months) | K196: As per FFR framework agreement | L196: 2300 | M196: 700 | N196: 8 | O196: 2300 | P196: 700 | Q196: 8 | R196: 2300 | S196: 700 | T196: 8 | U196: 329.56 | AC196: 17.6 | AD196: 44 | AE196: 44 | AF196: 17.6 | AG196: 44 | AH196: 17.6 | AI196: 44 | AP196: SG9 0
A197: 148.207 | B197: Accepted | C197: NA | D197: Statkraft Markets GmbH | E197: AG-ASTK05 | F197: DNO Connection | G197: DSF: Storage (for export) | H197: 2022-05-01 | I197: 2022-05-31 | J197: 01.05.22 - 31.05.22 (1 months) | K197: As per FFR framework agreement | L197: 700 | M197: 1500 | N197: 8 | O197: 700 | P197: 1500 | Q197: 8 | R197: 700 | S197: 1500 | T197: 8 | U197: 347.6 | AC197: 17.6 | AD197: 44 | AE197: 44 | AF197: 17.6 | AG197: 44 | AH197: 17.6 | AI197: 44 | AP197: SG9 0
A198: 148.208 | B198: Accepted | C198: NA | D198: Statkraft Markets GmbH | E198: AG-ASTK05 | F198: DNO Connection | G198: DSF: Storage (for export) | H198: 2022-05-01 | I198: 2022-05-31 | J198: 01.05.22 - 31.05.22 (1 months) | K198: As per FFR framework agreement | L198: 1500 | M198: 2300 | N198: 8 | O198: 1500 | P198: 2300 | Q198: 8 | R198: 1500 | S198: 2300 | T198: 8 | U198: 990 | AC198: 17.6 | AD198: 44 | AE198: 44 | AF198: 17.6 | AG198: 44 | AH198: 17.6 | AI198: 44 | AP198: SG9 0
A199: 148.209 | B199: Accepted | C199: NA | D199: Statkraft Markets GmbH | E199: AG-HSTK01 | F199: DNO Connection | G199: DSF: Storage (for export) | H199: 2022-04-30 | I199: 2022-05-31 | J199: 30.04.22 - 31.05.22 (1 months) | K199: As per FFR framework agreement | L199: 2300 | M199: 700 | N199: 8 | O199: 2300 | P199: 700 | Q199: 8 | R199: 2300 | S199: 700 | T199: 8 | U199: 351.56 | AC199: 17.6 | AD199: 44 | AE199: 44 | AF199: 17.6 | AG199: 44 | AH199: 17.6 | AI199: 44 | AP199: SN16
A200: 148.21 | B200: Accepted | C200: NA | D200: Statkraft Markets GmbH | E200: AG-HSTK01 | F200: DNO Connection | G200: DSF: Storage (for export) | H200: 2022-05-01 | I200: 2022-05-31 | J200: 01.05.22 - 31.05.22 (1 months) | K200: As per FFR framework agreement | L200: 700 | M200: 1500 | N200: 8 | O200: 700 | P200: 1500 | Q200: 8 | R200: 700 | S200: 1500 | T200: 8 | U200: 373.56 | AC200: 17.6 | AD200: 44 | AE200: 44 | AF200: 17.6 | AG200: 44 | AH200: 17.6 | AI200: 44 | AP200: SN16
... 18 more rows
